{"text_format":"1","workbook":"xlsx","n_sheets":7,"sheets":["Sheet1","データを入力して下さい","弁護士名簿登録請求書","履歴書","誓約書","【希望者】身分証明書発行申請書","主要法科大学院一覧"],"not_rendered":{"charts":0,"images":2,"macros":1,"external_links":1,"defined_names":15,"comments":1,"pivot_tables":0},"unopened":[],"bounds":{"document_bytes":16777216,"sheet_cells":100000,"rows_first":2000,"rows_last":500,"rows_between":2000,"halvings":0,"cell_chars":16384,"cell_head_chars":4096},"cells_cut":0,"cells_raw":0,"read":"whole","date_system":"1900"}

{"sheet":"Sheet1","index":0,"n_rows":52,"n_cols":2,"rows_kept":52,"cut":false,"hidden":true,"merged":[]}
["東京","東京都"]
["第一東京","東京都"]
["第二東京","東京都"]
["神奈川県","神奈川県"]
["埼玉","埼玉県"]
["千葉県","千葉県"]
["茨城県","茨城県"]
["栃木県","栃木県"]
["群馬","群馬県"]
["静岡県","静岡県"]
["山梨県","山梨県"]
["長野県","長野県"]
["新潟県","新潟県"]
["大阪","大阪府"]
["京都","京都府"]
["兵庫県","兵庫県"]
["奈良","奈良県"]
["滋賀","滋賀県"]
["和歌山","和歌山県"]
["愛知県","愛知県"]
["三重","三重県"]
["岐阜県","岐阜県"]
["福井","福井県"]
["金沢","石川県"]
["富山県","富山県"]
["広島","広島県"]
["山口県","山口県"]
["岡山","岡山県"]
["鳥取県","鳥取県"]
["島根県","島根県"]
["福岡県","福岡県"]
["佐賀県","佐賀県"]
["長崎県","長崎県"]
["大分県","大分県"]
["熊本県","熊本県"]
["鹿児島県","鹿児島県"]
["宮崎県","宮崎県"]
["沖縄","沖縄県"]
["仙台","宮城県"]
["福島県","福島県"]
["山形県","山形県"]
["岩手","岩手県"]
["秋田","秋田県"]
["青森県","青森県"]
["札幌","北海道"]
["函館","北海道"]
["旭川","北海道"]
["釧路","北海道"]
["香川県","香川県"]
["徳島","徳島県"]
["高知","高知県"]
["愛媛","愛媛県"]

{"sheet":"データを入力して下さい","index":1,"n_rows":91,"n_cols":31,"rows_kept":91,"cut":false,"hidden":false,"merged":[[74,0,81,0],[73,3,73,31],[72,1,73,1],[72,4,72,7],[72,9,72,12],[56,0,73,0],[71,3,71,31],[38,0,55,0],[40,3,40,7],[38,11,39,12],[64,3,64,9],[64,17,64,23],[68,3,68,9],[64,24,64,31],[70,3,70,9],[70,24,70,31],[69,3,69,31],[42,3,42,31],[37,3,37,13],[42,1,42,2],[40,1,40,2],[60,30,60,31],[51,3,51,6],[57,13,57,31],[50,1,55,1],[38,3,39,4],[39,13,39,18],[58,30,58,31],[56,19,56,20],[39,5,39,10],[54,13,54,16],[54,3,54,6],[52,3,52,31],[55,8,55,11],[49,13,49,16],[48,13,48,16],[48,8,48,11],[58,13,58,29],[0,1,0,28],[56,30,56,31],[58,3,58,10],[58,11,58,12],[56,3,56,10],[38,1,38,2],[39,1,39,2],[43,9,43,12],[43,3,43,6],[38,5,38,10],[43,1,49,1],[41,1,41,2],[38,13,38,18],[41,3,41,7],[50,3,50,6],[55,3,55,6],[55,13,55,16],[46,3,46,31],[47,3,47,31],[54,8,54,11],[56,21,56,29],[49,3,49,6],[49,8,49,11],[37,1,37,2],[88,1,88,10],[88,11,88,16],[56,11,56,12],[56,13,56,18],[44,3,44,6],[53,3,53,31],[56,2,57,2],[84,36,84,37],[58,2,59,2],[60,2,61,2],[70,10,70,15],[70,17,70,23],[45,3,45,31],[60,3,60,29],[66,10,66,15],[64,10,64,15],[48,3,48,6],[43,32,44,37],[59,13,59,31],[66,3,66,9],[66,17,66,23],[68,17,68,23],[68,10,68,15],[63,3,63,17],[75,1,80,6],[56,1,61,1],[64,1,71,2],[67,3,67,31],[87,1,87,2],[87,3,87,4],[87,5,87,9],[87,10,87,11],[87,12,87,16],[61,13,61,31],[65,3,65,31],[66,24,66,31],[68,24,68,31],[62,1,63,1],[62,3,62,17]]}
["・このシートはデータ入力用です。","※このシートは入力用です。このシートに入力した内容が、各シートに反映されます。※\n　↓↓下にスクロールしてください↓↓"]
[]
[]
[]
[null,"　①「弁護士名簿登録請求書」"]
[null,"　②「履歴書」"]
[null,"　③「誓約書」"]
[null,"　④（希望者）身分証明書発行申請書"]
[]
[]
[null,"入力にあたっては、別紙２「弁護士名簿登録請求書等記入要領」をよく読み、誤りのないようにしてください。"]
[null,"各書類に押す印鑑は統一してください。\n"]
[null,"書類に不備があり、期限までに補正が完了しない場合、希望の日付けで登録できないことがあります。"]
[]
[]
[]
[]
[]
[]
[]
[]
[]
[]
[]
[]
[]
[]
[]
[]
[]
[]
[]
[]
[]
[]
[]
[null,"↓カタカナは全角、数字・アルファベット・「－」（ハイフン）は半角で入力してください。"]
[null,"入会希望弁護士会　（プルダウンから選択）"]
["弁護士名簿登録請求書・誓約書","ふりがな（ひらがな）",null,"氏",null,null,null,null,null,null,null,"名"]
[null,"氏名（漢字）"]
[null,"生年月日（例：1980/1/1）"]
[null,"性別（男性＝１・女性＝２）"]
[null,"本籍　　※外国籍者は国籍"]
[null,"事務所\n他の弁護士と事務所を共にする場合は、事務所名称・ビル名等表記を統一してください。","郵便番号（ﾊｲﾌﾝなし）"]
[null,null,"都道府県"]
[null,null,"市区町村（丁目・番地は「－」）"]
[null,null,"マンション・ビル名・企業名（ある方のみ）"]
[null,null,"法律事務所名　※企業名等不可"]
[null,null,"電話（空欄可）　※携帯電話不可",null,null,null,null,"（",null,null,null,null,"）"]
[null,null,"ＦＡＸ（空欄可）",null,null,null,null,"（",null,null,null,null,"）"]
[null,"住所\n（自宅）\n登録日現在の住所を記入（未定の場合は実家等を記入）。\n","郵便番号（ﾊｲﾌﾝなし）"]
[null,null,"都道府県"]
[null,null,"市区町村"]
[null,null,"マンション・ビル名（ある方のみ）"]
[null,null,"電話（空欄可）　※携帯電話不可",null,null,null,null,"（",null,null,null,null,"）"]
[null,null,"ＦＡＸ（空欄可）",null,null,null,null,"（",null,null,null,null,"）"]
["履　　歴　　書","学歴\n入学の記載は不要。","学歴１（大学）",null,null,null,null,null,null,null,null,"大学",null,null,null,null,null,null,null,"学部",null,null,null,null,null,null,null,null,null,null,"卒業"]
[null,null,null,"卒業等年月日(例：2000/3/31)"]
[null,null,"学歴２（法科大学院）",null,null,null,null,null,null,null,null,"大学",null,"法科大学院",null,null,null,null,null,null,null,null,null,null,null,null,null,null,null,null,"修了"]
[null,null,null,"卒業等年月日(例：2000/3/31)"]
[null,null,"学歴３\n（法科大学院等以外・司法試験予備試験）",null,null,null,null,null,null,null,null,null,null,null,null,null,null,null,null,null,null,null,null,null,null,null,null,null,null,null,"卒業"]
[null,null,null,"卒業等年月日(例：2000/3/31)"]
[null,"司法試験合格","新試験・旧試験の別","司法試験合格"]
[null,null,"合格年月日(例:2000/3/31)"]
[null,"職歴\n＊職歴がない場合は入力しないでください。\n＊職歴がある場合は、始期・終期のいずれも入力が必須です(現職の場合は、「現在」と入力してください。)。\n＊アルバイト歴は入力不要です。",null,"始期(例:2000/3/31)",null,null,null,null,null,null,null,null,null,null,null,null,"～","終期(例:2000/3/31、 現在)"]
[]
[null,null,null,"始期(例:2000/3/31)",null,null,null,null,null,null,null,null,null,null,null,null,"～","終期(例:2000/3/31、 現在)"]
[]
[null,null,null,"始期(例:2000/3/31)",null,null,null,null,null,null,null,null,null,null,null,null,"～","終期(例:2000/3/31、 現在)"]
[]
[null,null,null,"始期(例:2000/3/31)",null,null,null,null,null,null,null,null,null,null,null,null,"～","終期(例:2000/3/31、 現在)"]
[]
[null,"賞罰","賞罰の有無 ※入力忘れ注意","賞",null,null,null,null,"罰"]
[null,null,"賞罰等の内容"]
["連絡先回答書"]
[null,"印刷の都合で書類が２枚に分かれてしまう場合\n①余白を変更して1枚に収まるにしてください（ファイルに保護が掛かっていても余白は変更できます。）。\n②２枚に分かれてしまう場合は、必ず同一の印鑑（弁護士名簿登録請求書等で使用した印鑑）で契印を押してください。（契印の押し方については、弁護士名簿登録請求書等記入要領をご参照ください。）"]
[]
[]
[]
[]
[]
[]
[]
[]
[null,"【希望者】身分証明書発行申請書"]
[null,"★身分証明書を発行する方で、【職務上の氏名】の使用を届出（又は許可申請）する方は以下も入力してください。"]
[]
[null,"①届出（又は許可申請）する職務上の氏名\n※「職務上の氏名の届出書・使用許可申請書」と完全に一致（外字・正字含む）させてください。",null,"職務上の\n氏",null,null,null,null,null,null,"職務上の\n名"]
[null,"②身分証明書に、氏名（戸籍上の氏名）と職務上の氏名を併記しますか？\n　　例　職務上の氏名＝日弁　太郎　、戸籍上の氏名＝法律　太郎の場合\n　　　　 併記を希望すると、身分証明書には\n         「日弁　太郎（登録名：法律　太郎）　」と記載されます。\n                   \n"]
[null,"「職務上の氏名の届出書・使用許可申請書」は別のファイルになります。届出（又は許可申請）する場合は必ず提出してください。"]
[null,"身分証明書発行申請書に職務上の氏名の記載があっても、「職務上の氏名の届出書・使用許可申請書」の提出がなければ、身分証明書に職務上の氏名の記載はできません。"]

{"sheet":"弁護士名簿登録請求書","index":2,"n_rows":183,"n_cols":42,"rows_kept":183,"cut":false,"hidden":false,"merged":[[27,10,28,15],[24,4,24,7],[6,4,6,7],[8,4,8,7],[7,11,9,35],[21,6,21,31],[20,7,20,41],[11,32,11,33],[11,35,11,36],[11,38,11,39],[16,27,18,40],[166,18,166,20],[52,3,52,13],[91,4,91,7],[80,7,80,41],[42,11,42,13],[48,22,49,25],[48,10,49,21],[46,18,46,20],[46,22,46,25],[45,19,45,42],[87,4,88,7],[44,4,45,7],[43,10,44,42],[47,4,48,7],[46,30,46,32],[42,15,42,17],[46,34,46,37],[46,39,46,43],[88,27,88,29],[66,22,66,41],[67,4,67,7],[68,11,70,35],[69,4,69,7],[104,4,105,7],[5,22,5,41],[28,24,28,26],[28,27,28,29],[25,25,27,37],[41,34,41,37],[83,39,84,43],[23,39,24,43],[25,40,29,42],[62,3,63,43],[81,6,81,31],[41,14,41,16],[36,11,36,13],[36,15,36,17],[39,19,39,42],[41,39,41,43],[40,14,40,42],[37,10,38,42],[41,30,41,32],[27,17,28,22],[24,10,24,15],[24,17,24,22],[27,4,28,7],[30,10,31,42],[31,4,31,7],[32,3,33,8],[34,3,34,16],[34,17,34,36],[34,37,35,43],[35,3,35,16],[35,17,35,36],[49,4,50,7],[39,4,39,7],[46,14,46,16],[41,18,41,20],[41,22,41,25],[84,4,84,7],[84,10,84,15],[84,17,84,22],[72,32,72,33],[72,35,72,36],[87,10,88,15],[87,17,88,22],[88,24,88,26],[72,38,72,39],[85,25,87,37],[85,40,89,42],[96,11,96,13],[96,15,96,17],[97,10,98,42],[99,4,99,7],[99,19,99,42],[94,3,94,16],[94,17,94,36],[94,37,95,43],[95,3,95,16],[95,17,95,36],[92,3,93,8],[90,10,91,42],[103,10,104,42],[105,19,105,42],[106,14,106,16],[106,18,106,20],[106,22,106,25],[106,30,106,32],[106,34,106,37],[106,39,106,43],[100,14,100,42],[101,22,101,25],[101,30,101,32],[101,34,101,37],[101,39,101,43],[102,11,102,13],[102,15,102,17],[101,14,101,16],[101,18,101,20],[126,22,126,41],[127,4,127,7],[128,11,130,35],[129,4,129,7],[140,7,140,41],[132,32,132,33],[132,35,132,36],[132,38,132,39],[107,4,108,7],[108,10,109,21],[108,22,109,25],[109,4,110,7],[112,3,112,13],[122,3,123,43],[141,6,141,31],[143,39,144,43],[144,4,144,7],[144,10,144,15],[144,17,144,22],[145,25,147,37],[145,40,149,42],[147,4,148,7],[147,10,148,15],[147,17,148,22],[157,10,158,42],[161,39,161,43],[161,14,161,16],[159,4,159,7],[159,19,159,42],[160,14,160,42],[148,24,148,26],[148,27,148,29],[150,10,151,42],[152,3,153,8],[154,3,154,16],[154,17,154,36],[154,37,155,43],[155,3,155,16],[155,17,155,36],[151,4,151,7],[76,27,78,40],[136,27,138,40],[172,3,172,13],[182,3,183,43],[166,22,166,25],[166,30,166,32],[166,34,166,37],[166,39,166,43],[167,4,168,7],[168,10,169,21],[168,22,169,25],[169,4,170,7],[161,18,161,20],[161,22,161,25],[161,30,161,32],[164,4,165,7],[163,10,164,42],[165,19,165,42],[166,14,166,16],[161,34,161,37],[162,11,162,13],[162,15,162,17],[156,11,156,13],[156,15,156,17]]}
[]
[]
[]
[]
[]
[null,null,null,null,null,null,null,null,null,null,null,null,null,null,null,null,null,null,null,null,null,null,"第１号①書式（第２条関係）日弁連提出用"]
[null,null,null,null,"６ 万 円"]
[null,null,null,null,null,null,null,null,null,null,null,"弁護士名簿登録請求書"]
[null,null,null,null,"印紙貼付"]
[]
[]
[null,null,null,null,null,null,null,null,null,null,null,null,null,null,null,null,null,null,null,null,null,null,null,null,null,null,null,null,null,null,"令和",null,7,null,"年",3,null,"月",27,null,"日"]
[]
[]
[null,null,null,null,null,null,null,null,"日本弁護士連合会会長　殿"]
[]
[null,null,null,null,null,null,null,null,null,null,null,null,null,null,null,null,null,null,null,null,null,null,null,null,null,null,null,{"$f":"データを入力して下さい!F40&\" \"&データを入力して下さい!N40","v":" "}]
[null,null,null,null,null,null,null,null,null,null,null,null,null,null,null,null,null,null,null,null,null,null,null,null,"請求者",null,null,null,null,null,null,null,null,null,null,null,null,null,null,null,null,"印"]
[]
[]
[null,null,null,null,null,null,null,"私は、弁護士名簿に登録されたく、弁護士法第9条及び日本弁護士連合会"]
[null,null,null,null,null,null,"会則第19条の規定により必要書類を添付して請求します。"]
[]
[null,null,null,null,null,null,null,null,null,null,null,null,null,null,null,null,null,null,null,null,null,null,null,null,null,null,null,null,null,null,null,null,null,null,null,null,null,null,null,"性別"]
[null,null,null,null,"ふりがな",null,null,null,null,null,{"$f":"IF(ISBLANK(データを入力して下さい!F39),\"\",データを入力して下さい!F39)","v":""},null,null,null,null,null,null,{"$f":"IF(ISBLANK(データを入力して下さい!N39),\"\",データを入力して下さい!N39)","v":""}]
[null,null,null,null,null,null,null,null,null,null,null,null,null,null,null,null,null,null,null,null,null,null,null,null,null,{"$f":"IF(ISBLANK(データを入力して下さい!D41),\"\",TEXT(データを入力して下さい!D41,\"ggge年m月d日\"))&\"生\"","v":"生"},null,null,null,null,null,null,null,null,null,null,null,null,null,null,{"$f":"IF(ISBLANK(データを入力して下さい!D42),\"\",IF(データを入力して下さい!D42=1,\"男\",\"女\"))","v":""}]
[]
[null,null,null,null,"氏　　名",null,null,null,null,null,{"$f":"IF(ISBLANK(データを入力して下さい!F40),\"\",データを入力して下さい!F40)","v":""},null,null,null,null,null,null,{"$f":"IF(ISBLANK(データを入力して下さい!N40),\"\",データを入力して下さい!N40)","v":""}]
[]
[]
[null,null,null,null,null,null,null,null,null,null,{"$f":"IF(ISBLANK(データを入力して下さい!D43),\"\",データを入力して下さい!D43)","v":""}]
[null,null,null,null,"本　　籍"]
[null,null,null,"(外国籍の者は国籍を記入)"]
[]
[null,null,null,"弁護士であったことの有無",null,null,null,null,null,null,null,null,null,null,null,null,null,"有",null,null,null,null,null,null,null,null,null,null,null,null,null,null,null,null,null,null,null,"・　　無"]
[null,null,null,"（登録取消し時の登録番号）",null,null,null,null,null,null,null,null,null,null,null,null,null,"（　　　　　　　　　　　　　　　　）"]
[null,null,null,null,null,null,null,null,null,"（","〒",{"$f":"LEFT(データを入力して下さい!$D$44,3)","v":""},null,null,"－",{"$f":"RIGHT(データを入力して下さい!$D$44,4)","v":""},null,null,"）"]
[null,null,null,null,null,null,null,null,null,null,{"$f":"データを入力して下さい!$D$45&データを入力して下さい!$D$46","v":""}]
[]
[null,null,null,null,"事 務 所",null,null,null,null,"（マンション・ビル名）",null,null,null,null,null,null,null,null,null,{"$f":"IF(ISBLANK(データを入力して下さい!D47),\"\",データを入力して下さい!$D$47)","v":""}]
[null,null,null,null,null,null,null,null,null,"（事務所名）",null,null,null,null,{"$f":"IF(ISBLANK(データを入力して下さい!D48),\"\",データを入力して下さい!$D$48)","v":""}]
[null,null,null,null,null,null,null,null,null,"　電　　話",null,null,null,null,{"$f":"IF(ISBLANK(データを入力して下さい!D49),\"\",データを入力して下さい!D49)","v":""},null,null,"(",{"$f":"IF(ISBLANK(データを入力して下さい!I49),\"\",データを入力して下さい!$I$49)","v":""},null,null,")",{"$f":"IF(ISBLANK(データを入力して下さい!N49),\"\",データを入力して下さい!$N$49)","v":""},null,null,null,null,"ＦＡＸ",null,null,{"$f":"IF(ISBLANK(データを入力して下さい!D50),\"\",データを入力して下さい!$D$50)","v":""},null,null,"(",{"$f":"IF(ISBLANK(データを入力して下さい!I50),\"\",データを入力して下さい!$I$50)","v":""},null,null,null,")",{"$f":"IF(ISBLANK(データを入力して下さい!N50),\"\",データを入力して下さい!$N$50)","v":""}]
[null,null,null,null,null,null,null,null,null,"（","〒",{"$f":"LEFT(データを入力して下さい!$D$51,3)","v":""},null,null,"－",{"$f":"RIGHT(データを入力して下さい!$D$51,4)","v":""},null,null,"）"]
[null,null,null,null,null,null,null,null,null,null,{"$f":"データを入力して下さい!$D$52&データを入力して下さい!$D$53","v":""}]
[null,null,null,null,"住　　所"]
[null,null,null,null,null,null,null,null,null,"（マンション・ビル名）",null,null,null,null,null,null,null,null,null,{"$f":"IF(ISBLANK(データを入力して下さい!D54),\"\",データを入力して下さい!$D$54)","v":""}]
[null,null,null,null,null,null,null,null,null,"　電　　話",null,null,null,null,{"$f":"IF(ISBLANK(データを入力して下さい!D55),\"\",データを入力して下さい!$D$55)","v":""},null,null,"(",{"$f":"IF(ISBLANK(データを入力して下さい!I55),\"\",データを入力して下さい!$I$55)","v":""},null,null,")",{"$f":"IF(ISBLANK(データを入力して下さい!N55),\"\",データを入力して下さい!$N$55)","v":""},null,null,null,null,"ＦＡＸ",null,null,{"$f":"IF(ISBLANK(データを入力して下さい!D56),\"\",データを入力して下さい!$D$56)","v":""},null,null,"(",{"$f":"IF(ISBLANK(データを入力して下さい!I56),\"\",データを入力して下さい!$I$56)","v":""},null,null,null,")",{"$f":"IF(ISBLANK(データを入力して下さい!N56),\"\",データを入力して下さい!$N$56)","v":""}]
[null,null,null,null,"入会希望"]
[null,null,null,null,null,null,null,null,null,null,{"$f":"IF(ISBLANK(データを入力して下さい!D38),\"\",データを入力して下さい!$D$38)","v":""},null,null,null,null,null,null,null,null,null,null,null,"弁護士会"]
[null,null,null,null,"弁護士会"]
[]
[]
[null,null,null,"添付書類"]
[null,null,null,"１　履歴書及び写真（無帽・無背景　４cm×３cm）"]
[null,null,null,"２　戸籍謄本（外国籍の者については、外国人住民に係る住民票の写し）、戸籍抄本又は氏名、本籍"]
[null,null,null,"　及び生年月日の記載を証明する戸籍記載事項証明書のうちいずれか１通"]
[null,null,null,"３　弁護士となる資格を証明する書面（司法修習終了後引き続き登録する者を除く。）"]
[null,null,null,"４　弁護士法第７条各号のいずれにも該当しない旨の証明書"]
[null,null,null,"５　弁護士法第１２条第１項各号及び第２項に掲げる事項に関する書面"]
[null,null,null,"６　弁護士であった者については、登録取消し前の弁護士名簿に登録されていた者と同一人であるこ"]
[null,null,null,"　とを証する書類"]
[]
[null,null,null,"　職務上の氏名を使用しようとする者は、職務上の氏名の届出書・使用許可申請書（第６号書式）を併せて提出する。"]
[]
[]
[]
[null,null,null,null,null,null,null,null,null,null,null,null,null,null,null,null,null,null,null,null,null,null,"第１号①書式（第２条関係）弁護士会控"]
[]
[null,null,null,null,null,null,null,null,null,null,null,"弁護士名簿登録請求書"]
[]
[]
[]
[null,null,null,null,null,null,null,null,null,null,null,null,null,null,null,null,null,null,null,null,null,null,null,null,null,null,null,null,null,null,"令和",null,7,null,"年",3,null,"月",27,null,"日"]
[]
[null,null,null,null,null,null,null,null,"日本弁護士連合会会長　殿"]
[]
[null,null,null,null,null,null,null,null,null,null,null,null,null,null,null,null,null,null,null,null,null,null,null,null,null,null,null,{"$f":"データを入力して下さい!F40&\" \"&データを入力して下さい!N40","v":" "}]
[null,null,null,null,null,null,null,null,null,null,null,null,null,null,null,null,null,null,null,null,null,null,null,null,"請求者",null,null,null,null,null,null,null,null,null,null,null,null,null,null,null,null,"印"]
[]
[]
[null,null,null,null,null,null,null,"私は、弁護士名簿に登録されたく、弁護士法第9条及び日本弁護士連合会"]
[null,null,null,null,null,null,"会則第19条の規定により必要書類を添付して請求します。"]
[]
[null,null,null,null,null,null,null,null,null,null,null,null,null,null,null,null,null,null,null,null,null,null,null,null,null,null,null,null,null,null,null,null,null,null,null,null,null,null,null,"性別"]
[null,null,null,null,"ふりがな",null,null,null,null,null,{"$f":"IF(ISBLANK($K$25),\"\",$K$25)","v":""},null,null,null,null,null,null,{"$f":"IF(ISBLANK($R$25),\"\",$R$25)","v":""}]
[null,null,null,null,null,null,null,null,null,null,null,null,null,null,null,null,null,null,null,null,null,null,null,null,null,{"$f":"IF(ISBLANK($Z$26),\"\",($Z$26))","v":"生"},null,null,null,null,null,null,null,null,null,null,null,null,null,null,{"$f":"IF(ISBLANK(データを入力して下さい!D42),\"\",IF(データを入力して下さい!D42=1,\"男\",\"女\"))","v":""}]
[]
[null,null,null,null,"氏　　名",null,null,null,null,null,{"$f":"IF(ISBLANK($K$28),\"\",$K$28)","v":""},null,null,null,null,null,null,{"$f":"IF(ISBLANK($R$28),\"\",$R$28)","v":""}]
[]
[]
[null,null,null,null,null,null,null,null,null,null,{"$f":"IF(ISBLANK(データを入力して下さい!D43),\"\",データを入力して下さい!D43)","v":""}]
[null,null,null,null,"本　　籍"]
[null,null,null,"(外国籍の者は国籍を記入)"]
[]
[null,null,null,"弁護士であったことの有無",null,null,null,null,null,null,null,null,null,null,null,null,null,"有",null,null,null,null,null,null,null,null,null,null,null,null,null,null,null,null,null,null,null,"・　　無"]
[null,null,null,"（登録取消し時の登録番号）",null,null,null,null,null,null,null,null,null,null,null,null,null,"（　　　　　　　　　　　　　　　　）"]
[null,null,null,null,null,null,null,null,null,"（","〒",{"$f":"LEFT(データを入力して下さい!$D$44,3)","v":""},null,null,"－",{"$f":"RIGHT(データを入力して下さい!$D$44,4)","v":""},null,null,"）"]
[null,null,null,null,null,null,null,null,null,null,{"$f":"データを入力して下さい!$D$45&データを入力して下さい!$D$46","v":""}]
[]
[null,null,null,null,"事 務 所",null,null,null,null,"（マンション・ビル名）",null,null,null,null,null,null,null,null,null,{"$f":"IF(ISBLANK(データを入力して下さい!D47),\"\",データを入力して下さい!$D$47)","v":""}]
[null,null,null,null,null,null,null,null,null,"（事務所名）",null,null,null,null,{"$f":"IF(ISBLANK(データを入力して下さい!D48),\"\",データを入力して下さい!$D$48)","v":""}]
[null,null,null,null,null,null,null,null,null,"　電　　話",null,null,null,null,{"$f":"IF(ISBLANK(データを入力して下さい!D49),\"\",データを入力して下さい!D49)","v":""},null,null,"(",{"$f":"IF(ISBLANK(データを入力して下さい!I49),\"\",データを入力して下さい!$I$49)","v":""},null,null,")",{"$f":"IF(ISBLANK(データを入力して下さい!N49),\"\",データを入力して下さい!$N$49)","v":""},null,null,null,null,"ＦＡＸ",null,null,{"$f":"IF(ISBLANK(データを入力して下さい!D50),\"\",データを入力して下さい!$D$50)","v":""},null,null,"(",{"$f":"IF(ISBLANK(データを入力して下さい!I50),\"\",データを入力して下さい!$I$50)","v":""},null,null,null,")",{"$f":"IF(ISBLANK(データを入力して下さい!N50),\"\",データを入力して下さい!$N$50)","v":""}]
[null,null,null,null,null,null,null,null,null,"（","〒",{"$f":"LEFT(データを入力して下さい!$D$51,3)","v":""},null,null,"－",{"$f":"RIGHT(データを入力して下さい!$D$51,4)","v":""},null,null,"）"]
[null,null,null,null,null,null,null,null,null,null,{"$f":"データを入力して下さい!$D$52&データを入力して下さい!$D$53","v":""}]
[null,null,null,null,"住　　所"]
[null,null,null,null,null,null,null,null,null,"（マンション・ビル名）",null,null,null,null,null,null,null,null,null,{"$f":"IF(ISBLANK(データを入力して下さい!D54),\"\",データを入力して下さい!$D$54)","v":""}]
[null,null,null,null,null,null,null,null,null,"　電　　話",null,null,null,null,{"$f":"IF(ISBLANK(データを入力して下さい!D55),\"\",データを入力して下さい!$D$55)","v":""},null,null,"(",{"$f":"IF(ISBLANK(データを入力して下さい!I55),\"\",データを入力して下さい!$I$55)","v":""},null,null,")",{"$f":"IF(ISBLANK(データを入力して下さい!N55),\"\",データを入力して下さい!$N$55)","v":""},null,null,null,null,"ＦＡＸ",null,null,{"$f":"IF(ISBLANK(データを入力して下さい!D56),\"\",データを入力して下さい!$D$56)","v":""},null,null,"(",{"$f":"IF(ISBLANK(データを入力して下さい!I56),\"\",データを入力して下さい!$I$56)","v":""},null,null,null,")",{"$f":"IF(ISBLANK(データを入力して下さい!N56),\"\",データを入力して下さい!$N$56)","v":""}]
[null,null,null,null,"入会希望"]
[null,null,null,null,null,null,null,null,null,null,{"$f":"IF(ISBLANK(データを入力して下さい!D38),\"\",データを入力して下さい!$D$38)","v":""},null,null,null,null,null,null,null,null,null,null,null,"弁護士会"]
[null,null,null,null,"弁護士会"]
[]
[]
[null,null,null,"添付書類"]
[null,null,null,"１　履歴書及び写真（無帽・無背景　４cm×３cm）"]
[null,null,null,"２　戸籍謄本（外国籍の者については、外国人住民に係る住民票の写し）、戸籍抄本又は氏名、本籍"]
[null,null,null,"　及び生年月日の記載を証明する戸籍記載事項証明書のうちいずれか１通"]
[null,null,null,"３　弁護士となる資格を証明する書面（司法修習終了後引き続き登録する者を除く。）"]
[null,null,null,"４　弁護士法第７条各号のいずれにも該当しない旨の証明書"]
[null,null,null,"５　弁護士法第１２条第１項各号及び第２項に掲げる事項に関する書面"]
[null,null,null,"６　弁護士であった者については、登録取消し前の弁護士名簿に登録されていた者と同一人であるこ"]
[null,null,null,"　とを証する書類"]
[]
[null,null,null,"　職務上の氏名を使用しようとする者は、職務上の氏名の届出書・使用許可申請書（第６号書式）を併せて提出する。"]
[]
[]
[]
[null,null,null,null,null,null,null,null,null,null,null,null,null,null,null,null,null,null,null,null,null,null,"第１号①書式（第２条関係）本人控"]
[]
[null,null,null,null,null,null,null,null,null,null,null,"弁護士名簿登録請求書"]
[]
[]
[]
[null,null,null,null,null,null,null,null,null,null,null,null,null,null,null,null,null,null,null,null,null,null,null,null,null,null,null,null,null,null,"令和",null,7,null,"年",3,null,"月",27,null,"日"]
[]
[null,null,null,null,null,null,null,null,"日本弁護士連合会会長　殿"]
[]
[null,null,null,null,null,null,null,null,null,null,null,null,null,null,null,null,null,null,null,null,null,null,null,null,null,null,null,{"$f":"データを入力して下さい!F40&\" \"&データを入力して下さい!N40","v":" "}]
[null,null,null,null,null,null,null,null,null,null,null,null,null,null,null,null,null,null,null,null,null,null,null,null,"請求者",null,null,null,null,null,null,null,null,null,null,null,null,null,null,null,null,"印"]
[]
[]
[null,null,null,null,null,null,null,"私は、弁護士名簿に登録されたく、弁護士法第9条及び日本弁護士連合会"]
[null,null,null,null,null,null,"会則第19条の規定により必要書類を添付して請求します。"]
[]
[null,null,null,null,null,null,null,null,null,null,null,null,null,null,null,null,null,null,null,null,null,null,null,null,null,null,null,null,null,null,null,null,null,null,null,null,null,null,null,"性別"]
[null,null,null,null,"ふりがな",null,null,null,null,null,{"$f":"IF(ISBLANK($K$25),\"\",$K$25)","v":""},null,null,null,null,null,null,{"$f":"IF(ISBLANK($R$25),\"\",$R$25)","v":""}]
[null,null,null,null,null,null,null,null,null,null,null,null,null,null,null,null,null,null,null,null,null,null,null,null,null,{"$f":"IF(ISBLANK($Z$26),\"\",($Z$26))","v":"生"},null,null,null,null,null,null,null,null,null,null,null,null,null,null,{"$f":"IF(ISBLANK($AO$26),\"\",$AO$26)","v":""}]
[]
[null,null,null,null,"氏　　名",null,null,null,null,null,{"$f":"IF(ISBLANK($K$28),\"\",$K$28)","v":""},null,null,null,null,null,null,{"$f":"IF(ISBLANK($R$28),\"\",$R$28)","v":""}]
[]
[]
[null,null,null,null,null,null,null,null,null,null,{"$f":"IF(ISBLANK(K31),\"\",(K31))","v":""}]
[null,null,null,null,"本　　籍"]
[null,null,null,"(外国籍の者は国籍を記入)"]
[]
[null,null,null,"弁護士であったことの有無",null,null,null,null,null,null,null,null,null,null,null,null,null,"有",null,null,null,null,null,null,null,null,null,null,null,null,null,null,null,null,null,null,null,"・　　無"]
[null,null,null,"（登録取消し時の登録番号）",null,null,null,null,null,null,null,null,null,null,null,null,null,"（　　　　　　　　　　　　　　　　）"]
[null,null,null,null,null,null,null,null,null,"（","〒",{"$f":"LEFT(データを入力して下さい!$D$44,3)","v":""},null,null,"－",{"$f":"RIGHT(データを入力して下さい!$D$44,4)","v":""},null,null,"）"]
[null,null,null,null,null,null,null,null,null,null,{"$f":"データを入力して下さい!$D$45&データを入力して下さい!$D$46","v":""}]
[]
[null,null,null,null,"事 務 所",null,null,null,null,"（マンション・ビル名）",null,null,null,null,null,null,null,null,null,{"$f":"IF(ISBLANK(データを入力して下さい!D47),\"\",データを入力して下さい!$D$47)","v":""}]
[null,null,null,null,null,null,null,null,null,"（事務所名）",null,null,null,null,{"$f":"IF(ISBLANK(データを入力して下さい!D48),\"\",データを入力して下さい!$D$48)","v":""}]
[null,null,null,null,null,null,null,null,null,"　電　　話",null,null,null,null,{"$f":"IF(ISBLANK(データを入力して下さい!D49),\"\",データを入力して下さい!D49)","v":""},null,null,"(",{"$f":"IF(ISBLANK(データを入力して下さい!I49),\"\",データを入力して下さい!$I$49)","v":""},null,null,")",{"$f":"IF(ISBLANK(データを入力して下さい!N49),\"\",データを入力して下さい!$N$49)","v":""},null,null,null,null,"ＦＡＸ",null,null,{"$f":"IF(ISBLANK(データを入力して下さい!D50),\"\",データを入力して下さい!$D$50)","v":""},null,null,"(",{"$f":"IF(ISBLANK(データを入力して下さい!I50),\"\",データを入力して下さい!$I$50)","v":""},null,null,null,")",{"$f":"IF(ISBLANK(データを入力して下さい!N50),\"\",データを入力して下さい!$N$50)","v":""}]
[null,null,null,null,null,null,null,null,null,"（","〒",{"$f":"LEFT(データを入力して下さい!$D$51,3)","v":""},null,null,"－",{"$f":"RIGHT(データを入力して下さい!$D$51,4)","v":""},null,null,"）"]
[null,null,null,null,null,null,null,null,null,null,{"$f":"データを入力して下さい!$D$52&データを入力して下さい!$D$53","v":""}]
[null,null,null,null,"住　　所"]
[null,null,null,null,null,null,null,null,null,"（マンション・ビル名）",null,null,null,null,null,null,null,null,null,{"$f":"IF(ISBLANK(データを入力して下さい!D54),\"\",データを入力して下さい!$D$54)","v":""}]
[null,null,null,null,null,null,null,null,null,"　電　　話",null,null,null,null,{"$f":"IF(ISBLANK(データを入力して下さい!D55),\"\",データを入力して下さい!$D$55)","v":""},null,null,"(",{"$f":"IF(ISBLANK(データを入力して下さい!I55),\"\",データを入力して下さい!$I$55)","v":""},null,null,")",{"$f":"IF(ISBLANK(データを入力して下さい!N55),\"\",データを入力して下さい!$N$55)","v":""},null,null,null,null,"ＦＡＸ",null,null,{"$f":"IF(ISBLANK(データを入力して下さい!D56),\"\",データを入力して下さい!$D$56)","v":""},null,null,"(",{"$f":"IF(ISBLANK(データを入力して下さい!I56),\"\",データを入力して下さい!$I$56)","v":""},null,null,null,")",{"$f":"IF(ISBLANK(データを入力して下さい!N56),\"\",データを入力して下さい!$N$56)","v":""}]
[null,null,null,null,"入会希望"]
[null,null,null,null,null,null,null,null,null,null,{"$f":"IF(ISBLANK(データを入力して下さい!D38),\"\",データを入力して下さい!$D$38)","v":""},null,null,null,null,null,null,null,null,null,null,null,"弁護士会"]
[null,null,null,null,"弁護士会"]
[]
[]
[null,null,null,"添付書類"]
[null,null,null,"１　履歴書及び写真（無帽・無背景　４cm×３cm）"]
[null,null,null,"２　戸籍謄本（外国籍の者については、外国人住民に係る住民票の写し）、戸籍抄本又は氏名、本籍"]
[null,null,null,"　及び生年月日の記載を証明する戸籍記載事項証明書のうちいずれか１通"]
[null,null,null,"３　弁護士となる資格を証明する書面（司法修習終了後引き続き登録する者を除く。）"]
[null,null,null,"４　弁護士法第７条各号のいずれにも該当しない旨の証明書"]
[null,null,null,"５　弁護士法第１２条第１項各号及び第２項に掲げる事項に関する書面"]
[null,null,null,"６　弁護士であった者については、登録取消し前の弁護士名簿に登録されていた者と同一人であるこ"]
[null,null,null,"　とを証する書類"]
[]
[null,null,null,"　職務上の氏名を使用しようとする者は、職務上の氏名の届出書・使用許可申請書（第６号書式）を併せて提出する。"]

{"sheet":"履歴書","index":3,"n_rows":121,"n_cols":40,"rows_kept":121,"cut":false,"hidden":false,"merged":[[112,3,116,6],[115,7,116,41],[108,7,108,18],[108,20,108,42],[102,20,103,42],[111,20,111,42],[104,3,111,6],[105,7,105,10],[83,14,84,30],[107,7,107,10],[107,11,107,13],[107,20,107,42],[105,11,105,13],[104,7,104,18],[120,21,120,23],[109,7,109,10],[109,11,109,13],[109,20,109,42],[110,7,110,18],[111,7,111,10],[118,22,118,36],[111,11,111,13],[119,19,119,20],[119,22,119,23],[86,3,86,6],[103,7,103,10],[103,11,103,13],[92,14,93,30],[94,3,99,6],[94,7,94,18],[94,20,95,42],[95,7,95,10],[95,11,95,13],[96,7,96,18],[99,7,99,10],[99,11,99,13],[100,3,103,6],[100,7,100,18],[100,20,101,42],[101,7,101,10],[101,11,101,13],[102,7,102,18],[87,3,87,6],[87,8,87,25],[89,36,91,41],[90,3,91,6],[90,8,90,34],[91,8,91,33],[89,11,89,14],[88,3,89,6],[88,15,88,17],[88,20,88,24],[9,3,9,6],[8,3,8,6],[12,3,13,6],[8,8,8,33],[10,15,10,17],[23,11,23,13],[19,11,19,13],[10,20,10,24],[10,3,11,6],[11,11,11,14],[16,20,17,42],[18,20,19,42],[21,11,21,13],[16,7,16,18],[21,7,21,10],[5,14,6,30],[14,14,15,30],[17,11,17,13],[31,11,31,13],[12,8,12,34],[24,7,24,18],[9,8,9,25],[19,7,19,10],[22,20,23,42],[22,7,22,18],[26,7,26,18],[24,20,25,42],[27,11,27,13],[27,7,27,10],[25,7,25,10],[25,11,25,13],[26,20,26,42],[31,7,31,10],[28,7,28,18],[48,3,48,6],[48,8,48,25],[32,7,32,18],[16,3,21,6],[22,3,25,6],[17,7,17,10],[20,7,20,18],[23,7,23,10],[30,7,30,18],[37,7,38,41],[33,20,33,42],[32,20,32,42],[44,14,45,30],[40,22,40,36],[41,25,41,26],[33,11,33,13],[47,3,47,6],[26,3,33,6],[34,3,38,6],[28,20,28,42],[29,20,29,42],[29,11,29,13],[42,21,42,23],[29,7,29,10],[41,19,41,20],[41,22,41,23],[73,3,77,6],[76,7,77,41],[65,3,72,6],[66,11,66,13],[67,7,67,18],[71,20,71,42],[69,20,69,42],[66,7,66,10],[68,7,68,10],[69,7,69,18],[70,20,70,42],[68,11,68,13],[65,7,65,18],[65,20,65,42],[70,11,70,13],[8,36,13,41],[66,20,66,42],[67,20,67,42],[20,20,21,42],[81,21,81,23],[13,8,13,34],[30,20,30,42],[31,20,31,42],[47,8,47,33],[47,36,48,41],[33,7,33,10],[64,7,64,10],[64,11,64,13],[68,20,68,42],[61,7,61,18],[61,20,62,42],[62,7,62,10],[62,11,62,13],[63,7,63,18],[59,20,60,42],[51,8,51,34],[52,8,52,33],[56,7,56,10],[56,11,56,13],[49,3,50,6],[72,7,72,10],[71,7,71,18],[72,11,72,13],[55,3,60,6],[59,7,59,18],[70,7,70,10],[49,15,49,17],[72,20,72,42],[51,3,52,6],[57,7,57,18],[58,7,58,10],[55,7,55,18],[55,20,56,40],[61,3,64,6],[60,11,60,13],[58,11,58,13],[60,7,60,10],[50,11,50,14],[49,20,49,24],[42,25,42,38],[120,25,120,38],[79,22,79,36],[63,20,64,42],[50,36,52,41],[53,14,54,30],[119,25,119,26],[80,19,80,20],[80,22,80,23],[80,25,80,26],[96,20,97,42],[106,20,106,42],[110,20,110,42],[86,8,86,33],[97,11,97,13],[81,25,81,38],[86,36,87,41],[97,7,97,10],[98,7,98,18],[98,20,99,42],[57,20,58,41],[104,20,104,42],[106,7,106,18],[105,20,105,42]]}
[]
[]
[]
[]
[null,null,null,null,null,null,null,null,null,null,null,null,null,null,null,null,null,null,null,null,null,null,null,null,null,null,null,null,null,null,null,null,null,null,null,"日弁連提出用"]
[null,null,null,null,null,null,null,null,null,null,null,null,null,null,"履 　歴 　書"]
[]
[]
[null,null,null,"本　　籍",null,null,null,null,{"$f":"IF(ISBLANK(データを入力して下さい!D43),\"\",データを入力して下さい!$D$43)","v":""},null,null,null,null,null,null,null,null,null,null,null,null,null,null,null,null,null,null,null,null,null,null,null,null,null,null,null,"　写　　　真　　背景なし　無帽　サングラス不可　プリンタ印刷不可　4cm×3cm　白黒・カラーいずれでも可"]
[null,null,null,"氏　　名",null,null,null,null,{"$f":"データを入力して下さい!F40&\" \"&データを入力して下さい!N40","v":" "}]
[null,null,null,"生年月日",null,null,null,null,{"$f":"IF(ISBLANK(データを入力して下さい!D41),\"\",TEXT(データを入力して下さい!D41,\"ggge年\"))","v":""},null,null,null,"（西暦",null,null,{"$f":"IF(ISBLANK(データを入力して下さい!D41),\"\",YEAR(データを入力して下さい!D41))","v":""},null,null,"年）",null,{"$f":"IF(ISBLANK(データを入力して下さい!D41),\"\",TEXT(データを入力して下さい!D41,\"m月d日\"))","v":""}]
[]
[null,null,null,"住所(自宅)",null,null,null,null,{"$f":"データを入力して下さい!D52&データを入力して下さい!D53","v":""}]
[null,null,null,null,null,null,null,null,{"$f":"IF(ISBLANK(データを入力して下さい!D54),\"\",データを入力して下さい!$D$54)","v":""}]
[null,null,null,null,null,null,null,null,null,null,null,null,null,null,"履　歴"]
[]
[null,null,null,"学　　歴",null,null,null,{"$f":"IF(ISBLANK(データを入力して下さい!N58),\"\",TEXT(データを入力して下さい!N58,\"ggge年m月d日\"))","v":""},null,null,null,null,null,null,null,null,null,null,null,null,{"$f":"IF(ISBLANK(データを入力して下さい!D57),\"\",データを入力して下さい!D57&データを入力して下さい!L57&データを入力して下さい!N57&データを入力して下さい!T57&データを入力して下さい!V57&データを入力して下さい!AE57)","v":""}]
[null,null,null,null,null,null,null,"（西暦",null,null,null,{"$f":"IF(ISBLANK(データを入力して下さい!N58),\"\",YEAR(データを入力して下さい!N58))","v":""},null,null,"）"]
[null,null,null,null,null,null,null,null,null,null,null,null,null,{"$f":"IF(ISBLANK(データを入力して下さい!N60),\"\",TEXT(データを入力して下さい!N60,\"ggge年m月d日\"))","v":""},null,null,null,null,null,null,{"$f":"IF(ISBLANK(データを入力して下さい!D59),\"\",データを入力して下さい!D59&データを入力して下さい!L59&データを入力して下さい!N59&データを入力して下さい!T59&データを入力して下さい!V59&データを入力して下さい!AE59)","v":""}]
[null,null,null,null,null,null,null,"（西暦",null,null,null,{"$f":"IF(ISBLANK(データを入力して下さい!N60),\"\",YEAR(データを入力して下さい!N60))","v":""},null,null,"）"]
[null,null,null,null,null,null,null,{"$f":"IF(ISBLANK(データを入力して下さい!N62),\"\",TEXT(データを入力して下さい!N62,\"ggge年m月d日\"))","v":""},null,null,null,null,null,null,null,null,null,null,null,null,{"$f":"IF(ISBLANK(データを入力して下さい!D61),\"\",データを入力して下さい!D61&データを入力して下さい!L61&データを入力して下さい!N61&データを入力して下さい!AE61)","v":""}]
[null,null,null,null,null,null,null,"（西暦",null,null,null,{"$f":"IF(ISBLANK(データを入力して下さい!N62),\"\",YEAR(データを入力して下さい!N62))","v":""},null,null,"）"]
[null,null,null,"弁 護 士\nと な る\n資　　格",null,null,null,{"$f":"IF(ISBLANK(データを入力して下さい!D64),\"\",TEXT(データを入力して下さい!D64,\"ggge年m月d日\"))","v":""},null,null,null,null,null,null,null,null,null,null,null,null,{"$f":"IF(ISBLANK(データを入力して下さい!D63),\"\",(データを入力して下さい!$D$63))","v":"司法試験合格"}]
[null,null,null,null,null,null,null,"（西暦",null,null,null,{"$f":"IF(ISBLANK(データを入力して下さい!D64),\"\",YEAR(データを入力して下さい!D64))","v":""},null,null,"）"]
[null,null,null,null,null,null,null,"2025-03-26",null,null,null,null,null,null,null,null,null,null,null,null,"司法修習終了（終了証書の交付日）"]
[null,null,null,null,null,null,null,"（西暦",null,null,null,2025,null,null,"）"]
[null,null,null,"職　　歴",null,null,null,{"$f":"IF(ISBLANK(データを入力して下さい!K65),\"\",TEXT(データを入力して下さい!K65,\"ggge年m月d日\"))","v":""},null,null,null,null,null,null,null,null,null,null,null,null,{"$f":"IF(ISBLANK(データを入力して下さい!D66),\"なし\",IF(ISBLANK(データを入力して下さい!D66),\"\",データを入力して下さい!D66))","v":"なし"}]
[null,null,null,null,null,null,null,"（西暦",null,null,null,{"$f":"IF(ISBLANK(データを入力して下さい!K65),\"\",YEAR(データを入力して下さい!K65))","v":""},null,null,"）",null,null,null,null,null,{"$f":"IF(ISBLANK(データを入力して下さい!Y65),\"\",\"（至\"&TEXT(データを入力して下さい!Y65,\"ggge年m月d日\")&\"）\")","v":""}]
[null,null,null,null,null,null,null,{"$f":"IF(ISBLANK(データを入力して下さい!K67),\"\",TEXT(データを入力して下さい!K67,\"ggge年m月d日\"))","v":""},{"$f":"IF(ISBLANK(データを入力して下さい!L67),\"\",TEXT(データを入力して下さい!L67,\"ggge年mm月d日\"))","v":""},{"$f":"IF(ISBLANK(データを入力して下さい!M67),\"\",TEXT(データを入力して下さい!M67,\"ggge年mm月d日\"))","v":""},{"$f":"IF(ISBLANK(データを入力して下さい!N67),\"\",TEXT(データを入力して下さい!N67,\"ggge年mm月d日\"))","v":""},{"$f":"IF(ISBLANK(データを入力して下さい!O67),\"\",TEXT(データを入力して下さい!O67,\"ggge年mm月d日\"))","v":""},{"$f":"IF(ISBLANK(データを入力して下さい!P67),\"\",TEXT(データを入力して下さい!P67,\"ggge年mm月d日\"))","v":""},{"$f":"IF(ISBLANK(データを入力して下さい!Q67),\"\",TEXT(データを入力して下さい!Q67,\"ggge年mm月d日\"))","v":"～"},{"$f":"IF(ISBLANK(データを入力して下さい!R67),\"\",TEXT(データを入力して下さい!R67,\"ggge年mm月d日\"))","v":"終期(例:2000/3/31、 現在)"},{"$f":"IF(ISBLANK(データを入力して下さい!S67),\"\",TEXT(データを入力して下さい!S67,\"ggge年mm月d日\"))","v":""},{"$f":"IF(ISBLANK(データを入力して下さい!T67),\"\",TEXT(データを入力して下さい!T67,\"ggge年mm月d日\"))","v":""},{"$f":"IF(ISBLANK(データを入力して下さい!U67),\"\",TEXT(データを入力して下さい!U67,\"ggge年mm月d日\"))","v":""},{"$f":"IF(ISBLANK(データを入力して下さい!V67),\"\",TEXT(データを入力して下さい!V67,\"ggge年mm月d日\"))","v":""},null,{"$f":"IF(ISBLANK(データを入力して下さい!$D68),\"\",データを入力して下さい!$D68)","v":""}]
[null,null,null,null,null,null,null,"（西暦",null,null,null,{"$f":"IF(ISBLANK(データを入力して下さい!K67),\"\",YEAR(データを入力して下さい!K67))","v":""},null,null,"）",null,null,null,null,null,{"$f":"IF(ISBLANK(データを入力して下さい!Y67),\"\",\"（至\"&TEXT(データを入力して下さい!Y67,\"ggge年m月d日\")&\"）\")","v":""}]
[null,null,null,null,null,null,null,{"$f":"IF(ISBLANK(データを入力して下さい!K69),\"\",TEXT(データを入力して下さい!K69,\"ggge年m月d日\"))","v":""},null,null,null,null,null,null,null,null,null,null,null,null,{"$f":"IF(ISBLANK(データを入力して下さい!$D70),\"\",データを入力して下さい!$D70)","v":""}]
[null,null,null,null,null,null,null,"（西暦",null,null,null,{"$f":"IF(ISBLANK(データを入力して下さい!K69),\"\",YEAR(データを入力して下さい!K69))","v":""},null,null,"）",null,null,null,null,null,{"$f":"IF(ISBLANK(データを入力して下さい!Y69),\"\",\"（至\"&TEXT(データを入力して下さい!Y69,\"ggge年m月d日\")&\"）\")","v":""}]
[null,null,null,null,null,null,null,{"$f":"IF(ISBLANK(データを入力して下さい!K71),\"\",TEXT(データを入力して下さい!K71,\"ggge年m月d日\"))","v":""},null,null,null,null,null,null,null,null,null,null,null,null,{"$f":"IF(ISBLANK(データを入力して下さい!$D72),\"\",データを入力して下さい!$D72)","v":""}]
[null,null,null,null,null,null,null,"（西暦",null,null,null,{"$f":"IF(ISBLANK(データを入力して下さい!K71),\"\",YEAR(データを入力して下さい!K71))","v":""},null,null,"）",null,null,null,null,null,{"$f":"IF(ISBLANK(データを入力して下さい!Y71),\"\",\"（至\"&TEXT(データを入力して下さい!Y71,\"ggge年m月d日\")&\"）\")","v":""}]
[null,null,null,"賞　　罰"]
[]
[null,null,null,null,null,null,null,null,null,"賞","：",{"$f":"IF(ISBLANK(データを入力して下さい!E73),\"なし\",データを入力して下さい!E73)","v":"なし"},null,null,"罰","：",{"$f":"IF(ISBLANK(データを入力して下さい!J73),\"なし\",データを入力して下さい!J73)","v":"なし"}]
[null,null,null,null,null,null,null,{"$f":"IF(ISBLANK(データを入力して下さい!D74),\"\",データを入力して下さい!$D74)","v":""}]
[]
[]
[null,null,null,null,null,null,null,null,null,null,null,null,null,null,null,null,null,null,null,null,null,null,"以上のとおり相違ありません"]
[null,null,null,null,null,null,null,null,null,null,null,null,null,null,null,null,null,"令和",null,7,null,"年",3,null,"月",27,null,"日"]
[null,null,null,null,null,null,null,null,null,null,null,null,null,null,null,null,null,null,null,null,null,"氏　名",null,null,null,{"$f":"データを入力して下さい!F40&\" \"&データを入力して下さい!N40","v":" "},null,null,null,null,null,null,null,null,null,null,null,null,null,"印"]
[null,null,null,null,null,null,null,null,null,null,null,null,null,null,null,null,null,null,null,null,null,null,null,null,null,null,null,null,null,null,null,null,"弁護士会控"]
[null,null,null,null,null,null,null,null,null,null,null,null,null,null,"履 　歴 　書"]
[]
[]
[null,null,null,"本　　籍",null,null,null,null,{"$f":"IF(ISBLANK($I$9),\"\",$I$9)","v":""},null,null,null,null,null,null,null,null,null,null,null,null,null,null,null,null,null,null,null,null,null,null,null,null,null,null,null,"写真"]
[null,null,null,"氏　　名",null,null,null,null,{"$f":"IF(ISBLANK($I$10),\"\",$I$10)","v":" "}]
[null,null,null,"生年月日",null,null,null,null,{"$f":"IF(ISBLANK(データを入力して下さい!D41),\"\",TEXT(データを入力して下さい!D41,\"ggge年\"))","v":""},null,null,null,"（西暦",null,null,{"$f":"IF(ISBLANK(データを入力して下さい!D41),\"\",YEAR(データを入力して下さい!D41))","v":""},null,null,"年）",null,{"$f":"IF(ISBLANK(データを入力して下さい!D41),\"\",TEXT(データを入力して下さい!D41,\"m月d日\"))","v":""}]
[null,null,null,null,null,null,null,null,null,null,null,null,null,null,null,null,null,null,null,null,null,null,null,null,null,null,null,null,null,null,null,null,null,null,null,null,"4cm×3cm"]
[null,null,null,"住所(自宅)",null,null,null,null,{"$f":"IF(ISBLANK($I$13),\"\",$I$13)","v":""}]
[null,null,null,null,null,null,null,null,{"$f":"IF(ISBLANK(データを入力して下さい!D54),\"\",データを入力して下さい!$D$54)","v":""}]
[null,null,null,null,null,null,null,null,null,null,null,null,null,null,"履　歴"]
[]
[null,null,null,"学　　歴",null,null,null,{"$f":"IF(ISBLANK($H17),\"\",$H17)","v":""},null,null,null,null,null,null,null,null,null,null,null,null,{"$f":"IF(ISBLANK(データを入力して下さい!D57),\"\",データを入力して下さい!D57&データを入力して下さい!L57&データを入力して下さい!N57&データを入力して下さい!T57&データを入力して下さい!V57&データを入力して下さい!AE57)","v":""}]
[null,null,null,null,null,null,null,"（西暦",null,null,null,{"$f":"IF(ISBLANK($L18),\"\",$L18)","v":""},null,null,"）"]
[null,null,null,null,null,null,null,{"$f":"IF(ISBLANK($N19),\"\",$N19)","v":""},null,null,null,null,null,null,null,null,null,null,null,null,{"$f":"IF(ISBLANK(データを入力して下さい!D59),\"\",データを入力して下さい!D59&データを入力して下さい!L59&データを入力して下さい!N59&データを入力して下さい!AE59)","v":""}]
[null,null,null,null,null,null,null,"（西暦",null,null,null,{"$f":"IF(ISBLANK($L20),\"\",$L20)","v":""},null,null,"）"]
[null,null,null,null,null,null,null,{"$f":"IF(ISBLANK($H21),\"\",$H21)","v":""},null,null,null,null,null,null,null,null,null,null,null,null,{"$f":"IF(ISBLANK(データを入力して下さい!D61),\"\",データを入力して下さい!D61&データを入力して下さい!L61&データを入力して下さい!N61&データを入力して下さい!AE61)","v":""}]
[null,null,null,null,null,null,null,"（西暦",null,null,null,{"$f":"IF(ISBLANK($L22),\"\",$L22)","v":""},null,null,"）"]
[null,null,null,"弁 護 士\nと な る\n資　　格",null,null,null,{"$f":"IF(ISBLANK($H23),\"\",$H23)","v":""},null,null,null,null,null,null,null,null,null,null,null,null,{"$f":"IF(ISBLANK(データを入力して下さい!D63),\"\",(データを入力して下さい!$D$63))","v":"司法試験合格"}]
[null,null,null,null,null,null,null,"（西暦",null,null,null,{"$f":"IF(ISBLANK($L24),\"\",$L24)","v":""},null,null,"）"]
[null,null,null,null,null,null,null,"2025-03-26",null,null,null,null,null,null,null,null,null,null,null,null,"司法修習終了（終了証書の交付日）"]
[null,null,null,null,null,null,null,"（西暦",null,null,null,2025,null,null,"）"]
[null,null,null,"職　　歴",null,null,null,{"$f":"IF(ISBLANK($H27),\"\",($H27))","v":""},null,null,null,null,null,null,null,null,null,null,null,null,{"$f":"IF(ISBLANK($U27),\"\",($U27))","v":"なし"}]
[null,null,null,null,null,null,null,"（西暦",null,null,null,{"$f":"IF(ISBLANK(データを入力して下さい!K65),\"\",YEAR(データを入力して下さい!K65))","v":""},null,null,"）",null,null,null,null,null,{"$f":"IF(ISBLANK(U28),\"\",(U28))","v":""}]
[null,null,null,null,null,null,null,{"$f":"IF(ISBLANK($H29),\"\",($H29))","v":""},null,null,null,null,null,null,null,null,null,null,null,null,{"$f":"IF(ISBLANK($U29),\"\",($U29))","v":""}]
[null,null,null,null,null,null,null,"（西暦",null,null,null,{"$f":"IF(ISBLANK($L30),\"\",($L30))","v":""},null,null,"）",null,null,null,null,null,""]
[null,null,null,null,null,null,null,{"$f":"IF(ISBLANK($H31),\"\",($H31))","v":""},null,null,null,null,null,null,null,null,null,null,null,null,""]
[null,null,null,null,null,null,null,"（西暦",null,null,null,{"$f":"IF(ISBLANK($L32),\"\",($L32))","v":""},null,null,"）",null,null,null,null,null,""]
[null,null,null,null,null,null,null,{"$f":"IF(ISBLANK($H33),\"\",($H33))","v":""},null,null,null,null,null,null,null,null,null,null,null,null,""]
[null,null,null,null,null,null,null,"（西暦",null,null,null,{"$f":"IF(ISBLANK($L34),\"\",($L34))","v":""},null,null,"）",null,null,null,null,null,""]
[null,null,null,"賞　　罰"]
[]
[null,null,null,null,null,null,null,null,null,"賞","：",{"$f":"IF(ISBLANK(データを入力して下さい!E73),\"なし\",データを入力して下さい!E73)","v":"なし"},null,null,"罰","：",{"$f":"IF(ISBLANK(データを入力して下さい!J73),\"なし\",データを入力して下さい!J73)","v":"なし"}]
[null,null,null,null,null,null,null,{"$f":"IF(ISBLANK($H$38),\"\",$H$38)","v":""}]
[]
[]
[null,null,null,null,null,null,null,null,null,null,null,null,null,null,null,null,null,null,null,null,null,null,"以上のとおり相違ありません"]
[null,null,null,null,null,null,null,null,null,null,null,null,null,null,null,null,null,"令和",null,7,null,"年",3,null,"月",27,null,"日"]
[null,null,null,null,null,null,null,null,null,null,null,null,null,null,null,null,null,null,null,null,null,"氏　名",null,null,null,{"$f":"データを入力して下さい!F40&\" \"&データを入力して下さい!N40","v":" "},null,null,null,null,null,null,null,null,null,null,null,null,null,"印"]
[null,null,null,null,null,null,null,null,null,null,null,null,null,null,null,null,null,null,null,null,null,null,null,null,null,null,null,null,null,null,null,null,"本人控"]
[null,null,null,null,null,null,null,null,null,null,null,null,null,null,"履 　歴 　書"]
[]
[]
[null,null,null,"本　　籍",null,null,null,null,{"$f":"IF(ISBLANK($I$9),\"\",$I$9)","v":""},null,null,null,null,null,null,null,null,null,null,null,null,null,null,null,null,null,null,null,null,null,null,null,null,null,null,null,"写真"]
[null,null,null,"氏　　名",null,null,null,null,{"$f":"IF(ISBLANK($I$10),\"\",$I$10)","v":" "}]
[null,null,null,"生年月日",null,null,null,null,{"$f":"IF(ISBLANK(データを入力して下さい!D41),\"\",TEXT(データを入力して下さい!D41,\"ggge年\"))","v":""},null,null,null,"（西暦",null,null,{"$f":"IF(ISBLANK(データを入力して下さい!D41),\"\",YEAR(データを入力して下さい!D41))","v":""},null,null,"年）",null,{"$f":"IF(ISBLANK(データを入力して下さい!D41),\"\",TEXT(データを入力して下さい!D41,\"m月d日\"))","v":""}]
[null,null,null,null,null,null,null,null,null,null,null,null,null,null,null,null,null,null,null,null,null,null,null,null,null,null,null,null,null,null,null,null,null,null,null,null,"4cm×3cm"]
[null,null,null,"住所(自宅)",null,null,null,null,{"$f":"IF(ISBLANK($I$13),\"\",$I$13)","v":""}]
[null,null,null,null,null,null,null,null,{"$f":"IF(ISBLANK(データを入力して下さい!D54),\"\",データを入力して下さい!$D$54)","v":""}]
[null,null,null,null,null,null,null,null,null,null,null,null,null,null,"履　歴"]
[]
[null,null,null,"学　　歴",null,null,null,{"$f":"IF(ISBLANK($H56),\"\",$H56)","v":""},null,null,null,null,null,null,null,null,null,null,null,null,{"$f":"IF(ISBLANK($U56),\"\",$U56)","v":""}]
[null,null,null,null,null,null,null,"（西暦",null,null,null,{"$f":"IF(ISBLANK($L57),\"\",$L57)","v":""},null,null,"）"]
[null,null,null,null,null,null,null,{"$f":"IF(ISBLANK($H58),\"\",$H58)","v":""},null,null,null,null,null,null,null,null,null,null,null,null,{"$f":"IF(ISBLANK($U58),\"\",$U58)","v":""}]
[null,null,null,null,null,null,null,"（西暦",null,null,null,{"$f":"IF(ISBLANK($L59),\"\",$L59)","v":""},null,null,"）"]
[null,null,null,null,null,null,null,{"$f":"IF(ISBLANK($H60),\"\",$H60)","v":""},null,null,null,null,null,null,null,null,null,null,null,null,{"$f":"IF(ISBLANK($U60),\"\",$U60)","v":""}]
[null,null,null,null,null,null,null,"（西暦",null,null,null,{"$f":"IF(ISBLANK($L61),\"\",$L61)","v":""},null,null,"）"]
[null,null,null,"弁 護 士\nと な る\n資　　格",null,null,null,{"$f":"IF(ISBLANK($H62),\"\",$H62)","v":""},null,null,null,null,null,null,null,null,null,null,null,null,{"$f":"IF(ISBLANK($U62),\"\",$U62)","v":"司法試験合格"}]
[null,null,null,null,null,null,null,"（西暦",null,null,null,{"$f":"IF(ISBLANK($L63),\"\",$L63)","v":""},null,null,"）"]
[null,null,null,null,null,null,null,"2025-03-26",null,null,null,null,null,null,null,null,null,null,null,null,"司法修習終了（終了証書の交付日）"]
[null,null,null,null,null,null,null,"（西暦",null,null,null,2025,null,null,"）"]
[null,null,null,"職　　歴",null,null,null,{"$f":"IF(ISBLANK($H66),\"\",($H66))","v":""},null,null,null,null,null,null,null,null,null,null,null,null,{"$f":"IF(ISBLANK($U66),\"\",($U66))","v":"なし"}]
[null,null,null,null,null,null,null,"（西暦",null,null,null,{"$f":"IF(ISBLANK($L67),\"\",($L67))","v":""},null,null,"）",null,null,null,null,null,""]
[null,null,null,null,null,null,null,{"$f":"IF(ISBLANK($H68),\"\",($H68))","v":""},null,null,null,null,null,null,null,null,null,null,null,null,""]
[null,null,null,null,null,null,null,"（西暦",null,null,null,{"$f":"IF(ISBLANK($L69),\"\",($L69))","v":""},null,null,"）",null,null,null,null,null,""]
[null,null,null,null,null,null,null,{"$f":"IF(ISBLANK($H70),\"\",($H70))","v":""},null,null,null,null,null,null,null,null,null,null,null,null,""]
[null,null,null,null,null,null,null,"（西暦",null,null,null,{"$f":"IF(ISBLANK($L71),\"\",($L71))","v":""},null,null,"）",null,null,null,null,null,""]
[null,null,null,null,null,null,null,{"$f":"IF(ISBLANK($H72),\"\",($H72))","v":""},null,null,null,null,null,null,null,null,null,null,null,null,""]
[null,null,null,null,null,null,null,"（西暦",null,null,null,{"$f":"IF(ISBLANK($L73),\"\",($L73))","v":""},null,null,"）",null,null,null,null,null,""]
[null,null,null,"賞　　罰"]
[]
[null,null,null,null,null,null,null,null,null,"賞","：",{"$f":"IF(ISBLANK(データを入力して下さい!E73),\"なし\",データを入力して下さい!E73)","v":"なし"},null,null,"罰","：",{"$f":"IF(ISBLANK(データを入力して下さい!J73),\"なし\",データを入力して下さい!J73)","v":"なし"}]
[null,null,null,null,null,null,null,{"$f":"IF(ISBLANK(データを入力して下さい!D74),\"\",データを入力して下さい!$D74)","v":""}]
[]
[]
[null,null,null,null,null,null,null,null,null,null,null,null,null,null,null,null,null,null,null,null,null,null,"以上のとおり相違ありません"]
[null,null,null,null,null,null,null,null,null,null,null,null,null,null,null,null,null,"令和",null,7,null,"年",3,null,"月",27,null,"日"]
[null,null,null,null,null,null,null,null,null,null,null,null,null,null,null,null,null,null,null,null,null,"氏　名",null,null,null,{"$f":"データを入力して下さい!F40&\" \"&データを入力して下さい!N40","v":" "},null,null,null,null,null,null,null,null,null,null,null,null,null,"印"]

{"sheet":"誓約書","index":4,"n_rows":138,"n_cols":38,"rows_kept":138,"cut":false,"hidden":false,"merged":[[162,3,162,13],[151,4,152,7],[152,10,153,21],[113,19,113,32],[113,15,113,17],[133,14,133,15],[152,22,153,25],[116,24,116,33],[153,4,154,7],[121,7,121,37],[136,23,137,35],[157,4,157,7],[160,4,160,7],[133,11,133,12],[158,4,158,7],[133,8,133,9],[120,7,120,28],[126,5,126,37],[78,5,78,37],[88,23,89,35],[110,8,110,10],[125,6,125,37],[85,11,85,12],[85,14,85,15],[111,12,111,36],[107,12,107,36],[85,8,85,9],[15,12,15,37],[24,7,24,28],[63,12,63,36],[29,6,29,37],[59,8,59,10],[20,24,20,33],[37,8,37,9],[37,11,37,12],[37,14,37,15],[59,12,59,36],[107,8,107,10],[101,20,101,37],[65,15,65,17],[110,12,110,37],[25,7,25,37],[72,7,72,28],[73,7,73,37],[65,19,65,32],[77,6,77,37],[68,24,68,33],[68,34,68,35],[116,34,116,35],[5,20,5,37],[9,8,9,13],[17,15,17,17],[11,12,11,37],[14,12,14,37],[14,8,14,10],[40,23,41,35],[62,12,62,37],[30,5,30,37],[11,8,11,10],[53,20,53,37],[17,19,17,32],[62,8,62,10],[37,6,37,7]]}
[]
[]
[]
[]
[]
[null,null,null,null,null,null,null,null,null,null,null,null,null,null,null,null,null,null,null,null,"（登録用）　日弁連提出用"]
[]
[]
[]
[]
[]
[null,null,null,null,null,null,null,null,"本　籍",null,null,null,{"$f":"IF(ISBLANK(データを入力して下さい!D43),\"\",データを入力して下さい!$D$43)","v":""}]
[]
[]
[null,null,null,null,null,null,null,null,"住　所",null,null,null,{"$f":"データを入力して下さい!D52&データを入力して下さい!D53","v":""}]
[null,null,null,null,null,null,null,null,null,null,null,null,{"$f":"IF(ISBLANK(データを入力して下さい!D54),\"\",データを入力して下さい!$D$54)","v":""}]
[]
[null,null,null,null,null,null,null,null,null,null,null,null,null,null,null,"氏　名",null,null,null,{"$f":"データを入力して下さい!F40&\" \"&データを入力して下さい!N40","v":" "}]
[]
[]
[null,null,null,null,null,null,null,null,null,null,null,null,null,null,null,null,null,null,null,null,null,null,null,null,{"$f":"IF(ISBLANK(データを入力して下さい!D41),\"\",TEXT(データを入力して下さい!D41,\"ggge年m月d日\"))","v":""},null,null,null,null,null,null,null,null,null,"生"]
[]
[]
[null,null,null,null,null,null,"私は、"]
[null,null,null,null,null,null,null,"１　弁護士法第７条各号のいずれにも該当しないこと　　　　　　　　　　　　　　　　"]
[null,null,null,null,null,null,null,"２　弁護士法第１２条第１項各号及び第２項に掲げる事項に該当しないこと"]
[null,null,null,null,null,"を誓約いたします。"]
[]
[]
[]
[]
[]
[]
[]
[]
[]
[]
[null,null,null,null,null,null,"令和",null,7,null,"年",3,null,"月",27,null,"日"]
[]
[]
[null,null,null,null,null,null,null,null,null,null,null,null,null,null,null,null,null,null,null,null,null,null,null,{"$f":"データを入力して下さい!F40&\" \"&データを入力して下さい!N40","v":" "}]
[null,null,null,null,null,null,null,null,null,null,null,null,null,null,null,null,null,null,null,"本 人",null,null,null,null,null,null,null,null,null,null,null,null,null,null,null,null,null,"印"]
[]
[]
[]
[]
[]
[]
[]
[]
[]
[]
[]
[null,null,null,null,null,null,null,null,null,null,null,null,null,null,null,null,null,null,null,null,"（登録用）　弁護士会控"]
[]
[]
[]
[]
[]
[null,null,null,null,null,null,null,null,"本　籍",null,null,null,{"$f":"IF(ISBLANK($M12),\"\",$M12)","v":""}]
[]
[]
[null,null,null,null,null,null,null,null,"住　所",null,null,null,{"$f":"IF(ISBLANK($M15),\"\",$M15)","v":""}]
[null,null,null,null,null,null,null,null,null,null,null,null,{"$f":"IF(ISBLANK($M16),\"\",$M16)","v":""}]
[]
[null,null,null,null,null,null,null,null,null,null,null,null,null,null,null,"氏　名",null,null,null,{"$f":"データを入力して下さい!F40&\" \"&データを入力して下さい!N40","v":" "},null,null,null,null,null,null,{"$f":"データを入力して下さい!$N$39","v":0}]
[]
[]
[null,null,null,null,null,null,null,null,null,null,null,null,null,null,null,null,null,null,null,null,null,null,null,null,{"$f":"IF(ISBLANK($Y$21),\"\",$Y$21)","v":""},null,null,null,null,null,null,null,null,null,"生"]
[]
[]
[null,null,null,null,null,null,"私は、"]
[null,null,null,null,null,null,null,"１　弁護士法第７条各号のいずれにも該当しないこと　　　　　　　　　　　　　　　　"]
[null,null,null,null,null,null,null,"２　弁護士法第１２条第１項各号及び第２項に掲げる事項に該当しないこと"]
[null,null,null,null,null,"を誓約いたします。"]
[]
[]
[]
[]
[]
[]
[]
[]
[]
[]
[null,null,null,null,null,null,"令和",null,7,null,"年",3,null,"月",27,null,"日"]
[]
[]
[null,null,null,null,null,null,null,null,null,null,null,null,null,null,null,null,null,null,null,null,null,null,null,{"$f":"データを入力して下さい!F40&\" \"&データを入力して下さい!N40","v":" "}]
[null,null,null,null,null,null,null,null,null,null,null,null,null,null,null,null,null,null,null,"本 人",null,null,null,null,null,null,null,null,null,null,null,null,null,null,null,null,null,"印"]
[]
[]
[]
[]
[]
[]
[]
[]
[]
[]
[]
[null,null,null,null,null,null,null,null,null,null,null,null,null,null,null,null,null,null,null,null,"（登録用）　本人控"]
[]
[]
[]
[]
[]
[null,null,null,null,null,null,null,null,"本　籍",null,null,null,{"$f":"IF(ISBLANK($M60),\"\",$M60)","v":""}]
[]
[]
[null,null,null,null,null,null,null,null,"住　所",null,null,null,{"$f":"IF(ISBLANK($M63),\"\",$M63)","v":""}]
[null,null,null,null,null,null,null,null,null,null,null,null,{"$f":"IF(ISBLANK($M64),\"\",$M64)","v":""}]
[]
[null,null,null,null,null,null,null,null,null,null,null,null,null,null,null,"氏　名",null,null,null,{"$f":"データを入力して下さい!F40&\" \"&データを入力して下さい!N40","v":" "}]
[]
[]
[null,null,null,null,null,null,null,null,null,null,null,null,null,null,null,null,null,null,null,null,null,null,null,null,{"$f":"IF(ISBLANK($Y$21),\"\",$Y$21)","v":""},null,null,null,null,null,null,null,null,null,"生"]
[]
[]
[null,null,null,null,null,null,"私は、"]
[null,null,null,null,null,null,null,"１　弁護士法第７条各号のいずれにも該当しないこと　　　　　　　　　　　　　　　　"]
[null,null,null,null,null,null,null,"２　弁護士法第１２条第１項各号及び第２項に掲げる事項に該当しないこと"]
[null,null,null,null,null,"を誓約いたします。"]
[]
[]
[]
[]
[]
[]
[]
[]
[]
[]
[null,null,null,null,null,null,"令和",null,7,null,"年",3,null,"月",27,null,"日"]
[]
[]
[null,null,null,null,null,null,null,null,null,null,null,null,null,null,null,null,null,null,null,null,null,null,null,{"$f":"データを入力して下さい!F40&\" \"&データを入力して下さい!N40","v":" "}]
[null,null,null,null,null,null,null,null,null,null,null,null,null,null,null,null,null,null,null,"本 人",null,null,null,null,null,null,null,null,null,null,null,null,null,null,null,null,null,"印"]

{"sheet":"【希望者】身分証明書発行申請書","index":5,"n_rows":141,"n_cols":34,"rows_kept":141,"cut":false,"hidden":false,"merged":[[2,2,2,37],[7,7,7,37],[20,4,20,37],[13,7,13,37],[18,4,18,37],[19,4,19,37],[14,7,14,37],[15,7,15,37],[30,14,31,23],[32,4,33,13],[42,41,42,45],[42,46,42,50],[43,23,44,33],[36,4,37,13],[36,14,37,23],[41,23,41,25],[22,22,22,34],[24,2,25,37],[28,4,29,13],[28,14,29,23],[29,28,34,31],[30,4,31,13],[32,14,33,23],[34,4,35,13],[34,14,35,23],[46,4,46,37],[48,3,48,9],[48,10,48,27],[48,28,48,34],[49,3,50,9],[49,10,50,22],[49,23,50,27],[49,28,50,37],[39,26,39,37],[53,3,53,9],[53,10,54,37],[54,3,54,9],[55,3,57,9],[55,10,55,37],[56,10,56,37],[57,10,57,37],[51,3,51,9],[51,10,51,11],[51,12,51,22],[51,23,51,24],[51,25,51,37],[52,3,52,9],[52,10,52,11],[52,12,52,22],[52,23,52,24],[52,25,52,37],[82,23,82,25],[83,18,83,21],[84,23,84,33],[73,4,74,13],[73,14,74,23],[75,4,76,13],[75,14,76,23],[77,4,78,13],[58,3,58,9],[58,10,58,37],[77,14,78,23],[60,3,60,37],[65,2,66,37],[69,4,70,13],[69,14,70,23],[71,4,72,13],[71,14,72,23],[91,3,91,9],[91,10,91,11],[91,12,91,22],[91,23,91,24],[91,25,91,37],[86,4,86,37],[88,3,88,9],[88,10,88,27],[88,28,88,34],[89,3,90,9],[89,10,90,22],[89,23,90,27],[110,14,111,23],[95,3,97,9],[95,10,95,37],[96,10,96,37],[97,10,97,37],[98,3,98,9],[98,10,98,37],[92,3,92,9],[92,10,92,11],[92,12,92,22],[92,23,92,24],[92,25,92,37],[93,3,93,9],[93,10,94,37],[94,3,94,9],[131,10,131,11],[80,25,80,35],[119,25,119,35],[125,4,125,37],[127,3,127,9],[127,10,127,27],[127,28,127,34],[112,4,113,13],[112,14,113,23],[114,4,115,13],[114,14,115,23],[128,3,129,9],[128,10,129,22],[128,23,129,27],[121,23,121,25],[122,18,122,21],[123,23,123,33],[116,4,117,13],[116,14,117,23],[100,3,100,37],[104,2,105,37],[108,4,109,13],[108,14,109,23],[110,4,111,13],[140,3,140,37],[42,23,42,32],[83,23,83,32],[122,23,122,32],[89,28,90,37],[128,28,129,37],[131,23,131,24],[131,25,131,37],[132,3,132,9],[132,10,133,37],[134,3,136,9],[134,10,134,37],[135,10,135,37],[136,10,136,37],[131,12,131,22],[137,3,137,9],[137,10,137,37],[133,3,133,9],[130,3,130,9],[130,10,130,11],[130,12,130,22],[130,23,130,24],[130,25,130,37],[131,3,131,9],[17,5,17,37],[21,4,21,37],[3,2,3,37],[6,4,6,37],[10,7,10,37],[11,5,12,5],[11,7,12,37],[16,7,16,37],[4,4,4,37],[5,4,5,37],[8,7,8,37],[9,7,9,37]]}
[]
[]
[null,null,"(別紙)　　　　　　　　　　　　　　　　　　　記"]
[]
[null,null,"１",null,"　身分証明書を第三者に貸与又は譲渡をしないこと。"]
[null,null,"２",null,"　有効期間内に新たな身分証明書の発行を申請する場合には、弁護士等の身分証明書の発行に関する規則第１０条に基づき、既に発行を受けた身分証明書を所属弁護士会を経由して返還すること。\n　また、新たな身分証明書の交付を受ける場合には、引き換えに既に発行を受けた身分証明書を返還すること。　"]
[null,null,"３",null,"　次の場合には弁護士等の身分証明書の発行に関する規則第１３条に基づき、身分証明書を所属弁護士会又は最後に所属した弁護士会を経由して返還すること。また、身分証明書の名義人が死亡した場合には、当該名義人の相続人が返還すること。"]
[null,null,null,null,null,"①",null,"禁錮以上の刑に処せられたとき"]
[null,null,null,null,null,"②",null,"除名、退会命令又は業務停止の懲戒処分を受けたとき　"]
[null,null,null,null,null,"③",null,"懲戒の処分により、弁理士であって業務を禁止され、公認会計士であって登録を抹消され、税理士であって業務を禁止され、若しくは公務員であって免職され、又は税理士であった者であって税理士業務の禁止の懲戒処分を受けるべきであったことについて決定を受けたとき"]
[null,null,null,null,null,"④",null,"破産手続開始の決定を受けたとき　"]
[null,null,null,null,null,"⑤",null,"弁護士にあっては弁護士法（昭和二十四年法律第二百五号）第十一条、外国法事務弁護士にあっては外国弁護士による法律事務の取扱い等に関する法律（昭和六十一年法律第六十六号。以下「外国弁護士法律事務取扱法」という。）第三十条、沖縄弁護士にあっては沖縄弁護士に関する政令（昭和四十七年政令第百六十九号）第三条第一項の規定により、登録取消又は登載取消の請求をしたとき"]
[]
[null,null,null,null,null,"⑥",null,"弁護士にあっては弁護士法第十三条の規定による登録取消が確定したとき"]
[null,null,null,null,null,"⑦",null,"外国法事務弁護士にあっては外国弁護士法律事務取扱法第三十一条第一項第四号に該当したとき又は同条第二項により登録を取り消されたとき"]
[null,null,null,null,null,"⑧",null,"死亡したとき"]
[null,null,null,null,null,"⑨",null,"身分証明書の有効期間が満了したとき又は記載事項に変更が生じたとき"]
[]
[null,null,"４",null,"　身分証明書の返還をすべき場合で、その返還ができないときは、その事情を書面をもって、所属弁護士会を経由して届け出ること。"]
[null,null,"５",null,"　身分証明書を紛失した場合には、書面をもって速やかに、所属弁護士会を経由して「紛失届」を提出すること。\n"]
[null,null,"６",null,"　「紛失届」をなした身分証明書が発見された場合、直ちに所属弁護士会を経由して、その旨を書面をもって届け出ること。なお、身分証明書の紛失後に、新たな身分証明書の発行を申請し、又は発行を受けている場合には、発見された身分証明書を所属弁護士会を経由して返還すること。　\n"]
[null,null,"７",null,"　以上のほか、身分証明書の取扱いに当たっては、日本弁護士連合会の弁護士等の身分証明書の発行に関する規則を順守すること。"]
[null,null,null,null,null,null,null,null,null,null,null,null,null,null,null,null,null,null,null,null,null,null,"（日弁連提出用）"]
[]
[null,null,"身分証明書発行申請書"]
[]
[]
[]
[null,null,null,null,"新規発行",null,null,null,null,null,null,null,null,null,"○",null,null,null,null,null,null,null,null,null,null,null,null,null,null,"\n"]
[null,null,null,null,null,null,null,null,null,null,null,null,null,null,null,null,null,null,null,null,null,null,null,null,null,null,null,null,"写真貼付欄\nたて4cm×よこ3cm\n\n無背景、無帽、\nツヤあり"]
[null,null,null,null,"更新発行"]
[]
[null,null,null,null,"紛失再発行"]
[]
[null,null,null,null,"事項変更再発行"]
[]
[null,null,null,null,"職務上の氏名使用の有無",null,null,null,null,null,null,null,null,null,{"$f":"IF(ISBLANK(データを入力して下さい!F88),\"無\",\"有\")","v":"無"}]
[]
[]
[null,null,null,null,null,null,null,null,null,null,null,null,null,null,null,null,null,null,null,null,null,null,null,null,null,null,"2025-03-27"]
[]
[null,null,null,"日本弁護士連合会事務総長　殿"]
[null,null,null,null,null,null,null,null,null,null,null,null,null,null,null,null,null,null,null,"氏　名",null,null,null,{"$f":"データを入力して下さい!F40&\" \"&データを入力して下さい!N40","v":" "},null,null,null,null,null,null,null,null,null,"印"]
[null,null,null,null,null,null,null,null,null,null,null,null,null,null,null,null,null,null,null,null,null,null,null,"↑ 職務上の氏名を使用している場合は\n　 職務上の氏名を記載してください。\n"]
[]
[]
[null,null,null,null,"　私は、日本弁護士連合会の弁護士等の身分証明書の発行に関する規則に基づき、身分証明書の発行を受けたいので申請します。\n  なお、身分証明書の交付を受けた後には、別紙の記載事項を順守することを誓約します。\n"]
[null,null,null," 身分証明書記載事項  （※弁護士名簿記載の内容）  "]
[null,null,null,"所属弁護士会",null,null,null,null,null,null,{"$f":"IF(ISBLANK(データを入力して下さい!D38),\"\",データを入力して下さい!$D$38)","v":""},null,null,null,null,null,null,null,null,null,null,null,null,null,null,null,null,null,"弁護士会"]
[null,null,null,"登録/登載番号",null,null,null,null,null,null,"記入不要",null,null,null,null,null,null,null,null,null,null,null,null,"生年月日",null,null,null,null,{"$f":"IF(ISBLANK(データを入力して下さい!D41),\"\",TEXT(データを入力して下さい!D41,\"ggge年m月d日\"))","v":""}]
[]
[null,null,"　","氏　　　　名",null,null,null,null,null,null,"氏",null,{"$f":"IF(ISBLANK(データを入力して下さい!F40),\"\",データを入力して下さい!F40)","v":""},null,null,null,null,null,null,null,null,null,null,"名",null,{"$f":"IF(ISBLANK(データを入力して下さい!N39),\"\",データを入力して下さい!N40)","v":""}]
[null,null,null,"職務上の氏名",null,null,null,null,null,null,"氏",null,{"$f":"データを入力して下さい!F88","v":0},null,null,null,null,null,null,null,null,null,null,"名",null,{"$f":"データを入力して下さい!M88","v":0}]
[null,null,null,"（職務上の氏名を使用している会員）",null,null,null,null,null,null,{"$f":"データを入力して下さい!L89","v":0}]
[null,null,null,"氏名の併記"]
[null,null,null,"事務所所在地",null,null,null,null,null,null,{"$f":"データを入力して下さい!$D$45&データを入力して下さい!$D$46","v":""}]
[null,null,null,null,null,null,null,null,null,null,{"$f":"IF(ISBLANK(データを入力して下さい!D47),\"\",データを入力して下さい!$D$47)","v":""}]
[]
[null,null,null,"事務所名称",null,null,null,null,null,null,{"$f":"IF(ISBLANK(データを入力して下さい!D48),\"\",データを入力して下さい!$D$48)","v":""}]
[]
[null,null,null,"＜添付書類＞写真２枚（たて４cm×よこ３cm、１枚はこの申請書の写真貼付欄に貼付してください。）\n注 １　写真は、申請前３か月以内に撮影した上半身、無背景、無帽で、ツヤありであること。\n　 ２　写真の裏面には、氏名、登録・登載番号、撮影年月日を記入すること。"]
[]
[]
[null,null,null,null,null,null,null,null,null,null,null,null,null,null,null,null,null,null,null,null,null,null,null,null,null,null,null,null,null,null,null,"（弁護士会控）"]
[]
[null,null,"身分証明書発行申請書"]
[]
[]
[]
[null,null,null,null,"新規発行",null,null,null,null,null,null,null,null,null,"○",null,null,null,null,null,null,null,null,null,null,null,null,null,null,"\n"]
[]
[null,null,null,null,"更新発行"]
[]
[null,null,null,null,"紛失再発行"]
[]
[null,null,null,null,"事項変更再発行"]
[]
[null,null,null,null,"職務上の氏名使用の有無",null,null,null,null,null,null,null,null,null,{"$f":"IF(ISBLANK(データを入力して下さい!F88),\"無\",\"有\")","v":"無"}]
[]
[]
[null,null,null,null,null,null,null,null,null,null,null,null,null,null,null,null,null,null,null,null,null,null,null,null,null,"2025-03-27"]
[]
[null,null,null,"日本弁護士連合会事務総長　殿"]
[null,null,null,null,null,null,null,null,null,null,null,null,null,null,null,null,null,null,"氏　名",null,null,null,null,{"$f":"データを入力して下さい!F40&\" \"&データを入力して下さい!N40","v":" "},null,null,null,null,null,null,null,null,null,"印"]
[null,null,null,null,null,null,null,null,null,null,null,null,null,null,null,null,null,null,null,null,null,null,null,"↑　職務上の氏名を使用している場合は\n　　職務上の氏名を記載してください。\n"]
[]
[null,null,null,null,"　私は、日本弁護士連合会の弁護士等の身分証明書の発行に関する規則に基づき、身分証明書の発行を受けたいので申請します。\n  なお、身分証明書の交付を受けた後には、別紙の記載事項を順守することを誓約します。\n"]
[null,null,null," 身分証明書記載事項  （※弁護士名簿記載の内容）  "]
[null,null,null,"所属弁護士会",null,null,null,null,null,null,{"$f":"IF(ISBLANK(データを入力して下さい!D38),\"\",データを入力して下さい!$D$38)","v":""},null,null,null,null,null,null,null,null,null,null,null,null,null,null,null,null,null,"弁護士会"]
[null,null,null,"登録/登載番号",null,null,null,null,null,null,"記入不要",null,null,null,null,null,null,null,null,null,null,null,null,"生年月日",null,null,null,null,{"$f":"IF(ISBLANK(データを入力して下さい!D41),\"\",TEXT(データを入力して下さい!D41,\"ggge年m月d日\"))","v":""}]
[]
[null,null,"　","氏　　　　名",null,null,null,null,null,null,"氏",null,{"$f":"IF(ISBLANK(データを入力して下さい!F40),\"\",データを入力して下さい!F40)","v":""},null,null,null,null,null,null,null,null,null,null,"名",null,{"$f":"IF(ISBLANK(データを入力して下さい!N39),\"\",データを入力して下さい!N40)","v":""}]
[null,null,null,"職務上の氏名",null,null,null,null,null,null,"氏",null,{"$f":"データを入力して下さい!F88","v":0},null,null,null,null,null,null,null,null,null,null,"名",null,{"$f":"データを入力して下さい!M88","v":0}]
[null,null,null,"（職務上の氏名を使用している会員）",null,null,null,null,null,null,{"$f":"データを入力して下さい!L89","v":0}]
[null,null,null,"氏名の併記"]
[null,null,null,"事務所所在地",null,null,null,null,null,null,{"$f":"データを入力して下さい!$D$45&データを入力して下さい!$D$46","v":""}]
[null,null,null,null,null,null,null,null,null,null,{"$f":"IF(ISBLANK(データを入力して下さい!D47),\"\",データを入力して下さい!$D$47)","v":""}]
[]
[null,null,null,"事務所名称",null,null,null,null,null,null,{"$f":"IF(ISBLANK(データを入力して下さい!D48),\"\",データを入力して下さい!$D$48)","v":""}]
[]
[null,null,null,"＜添付書類＞写真２枚（たて４cm×よこ３cm、１枚はこの申請書の写真貼付欄に貼付してください。）\n注 １　写真は、申請前３か月以内に撮影した上半身、無背景、無帽で、ツヤありであること。\n　 ２　写真の裏面には、氏名、登録・登載番号、撮影年月日を記入すること。"]
[]
[null,null,null,null,null,null,null,null,null,null,null,null,null,null,null,null,null,null,null,null,null,null,null,null,null,null,null,null,null,null,null,"（本人控）"]
[]
[null,null,"身分証明書発行申請書"]
[]
[]
[]
[null,null,null,null,"新規発行",null,null,null,null,null,null,null,null,null,"○",null,null,null,null,null,null,null,null,null,null,null,null,null,null,"\n"]
[]
[null,null,null,null,"更新発行"]
[]
[null,null,null,null,"紛失再発行"]
[]
[null,null,null,null,"事項変更再発行"]
[]
[null,null,null,null,"職務上の氏名使用の有無",null,null,null,null,null,null,null,null,null,{"$f":"IF(ISBLANK(データを入力して下さい!F88),\"無\",\"有\")","v":"無"}]
[]
[]
[null,null,null,null,null,null,null,null,null,null,null,null,null,null,null,null,null,null,null,null,null,null,null,null,null,"2025-03-27"]
[]
[null,null,null,"日本弁護士連合会事務総長　殿"]
[null,null,null,null,null,null,null,null,null,null,null,null,null,null,null,null,null,null,"氏　名",null,null,null,null,{"$f":"データを入力して下さい!F40&\" \"&データを入力して下さい!N40","v":" "},null,null,null,null,null,null,null,null,null,"印"]
[null,null,null,null,null,null,null,null,null,null,null,null,null,null,null,null,null,null,null,null,null,null,null,"↑　職務上の氏名を使用している場合は\n　　職務上の氏名を記載してください。\n"]
[]
[null,null,null,null,"　私は、日本弁護士連合会の弁護士等の身分証明書の発行に関する規則に基づき、身分証明書の発行を受けたいので申請します。\n  なお、身分証明書の交付を受けた後には、別紙の記載事項を順守することを誓約します。\n"]
[null,null,null," 身分証明書記載事項  （※弁護士名簿記載の内容）  "]
[null,null,null,"所属弁護士会",null,null,null,null,null,null,{"$f":"IF(ISBLANK(データを入力して下さい!D38),\"\",データを入力して下さい!$D$38)","v":""},null,null,null,null,null,null,null,null,null,null,null,null,null,null,null,null,null,"弁護士会"]
[null,null,null,"登録/登載番号",null,null,null,null,null,null,"記入不要",null,null,null,null,null,null,null,null,null,null,null,null,"生年月日",null,null,null,null,{"$f":"IF(ISBLANK(データを入力して下さい!D41),\"\",TEXT(データを入力して下さい!D41,\"ggge年m月d日\"))","v":""}]
[]
[null,null,"　","氏　　　　名",null,null,null,null,null,null,"氏",null,{"$f":"IF(ISBLANK(データを入力して下さい!F40),\"\",データを入力して下さい!F40)","v":""},null,null,null,null,null,null,null,null,null,null,"名",null,{"$f":"IF(ISBLANK(データを入力して下さい!N39),\"\",データを入力して下さい!N40)","v":""}]
[null,null,null,"職務上の氏名",null,null,null,null,null,null,"氏",null,{"$f":"データを入力して下さい!F88","v":0},null,null,null,null,null,null,null,null,null,null,"名",null,{"$f":"データを入力して下さい!M88","v":0}]
[null,null,null,"（職務上の氏名を使用している会員）",null,null,null,null,null,null,{"$f":"データを入力して下さい!L89","v":0}]
[null,null,null,"氏名の併記"]
[null,null,null,"事務所所在地",null,null,null,null,null,null,{"$f":"データを入力して下さい!$D$45&データを入力して下さい!$D$46","v":""}]
[null,null,null,null,null,null,null,null,null,null,{"$f":"IF(ISBLANK(データを入力して下さい!D47),\"\",データを入力して下さい!$D$47)","v":""}]
[]
[null,null,null,"事務所名称",null,null,null,null,null,null,{"$f":"IF(ISBLANK(データを入力して下さい!D48),\"\",データを入力して下さい!$D$48)","v":""}]
[]
[]
[null,null,null,"＜添付書類＞写真２枚（たて４cm×よこ３cm、１枚はこの申請書の写真貼付欄に貼付してください。）\n注 １　写真は、申請前３か月以内に撮影した上半身、無背景、無帽で、ツヤありであること。\n　 ２　写真の裏面には、氏名、登録・登載番号、撮影年月日を記入すること。"]

{"sheet":"主要法科大学院一覧","index":6,"n_rows":80,"n_cols":4,"rows_kept":80,"cut":false,"hidden":false,"merged":[[1,0,1,3]]}
["主要法科大学院一覧（参考資料：文部科学省ホームページ　「法科大学院一覧」）"]
["履歴書に法科大学院名を記載する場合には、以下に記載の略称又は正式名称を記入してください（修了当時の略称又は名称を記入してください。）。"]
["※備考欄に「○」が付いている法科大学院は令和６年現在、募集が行われておりません。"]
["50音","略称","正式名称","備考"]
["あ","愛知大学法科大学院","愛知大学大学院法務研究科法務専攻"]
["あ","愛知学院大学法科大学院","愛知学院大学大学院法務研究科法務専攻","○"]
["あ","青山学院大学法科大学院","青山学院大学大学院法務研究科法務専攻","○"]
["お","大阪学院大学法科大学院","大阪学院大学大学院法務研究科法務専攻","○"]
["お","大阪大学法科大学院","大阪大学大学院高等司法研究科法務専攻"]
["お","大阪市立大学法科大学院\n※令和4年4月以降、大阪公立大学法科大学院","大阪市立大学大学院法学研究科法曹養成専攻\n※令和4年4月以降、大阪公立大学大学院法学研究科法曹養成専攻"]
["お","大宮法科大学院大学","大宮法科大学院大学法務研究科法務専攻","○"]
["お","岡山大学法科大学院","岡山大学大学院法務研究科法務専攻"]
["か","学習院大学法科大学院","学習院大学大学院法務研究科法務専攻"]
["か","鹿児島大学法科大学院","鹿児島大学大学院司法政策研究科法曹実務専攻","○"]
["か","関西大学法科大学院","関西大学大学院法務研究科法曹養成専攻"]
["か","関西学院大学法科大学院","関西学院大学大学院司法研究科法務専攻"]
["か","香川大学・愛媛大学法科大学院","香川大学・愛媛大学連合法務研究科法務専攻（通称：四国ロースクール）","○"]
["か","神奈川大学法科大学院","神奈川大学大学院法務研究科法務専攻","○"]
["か","金沢大学法科大学院","金沢大学大学院法務研究科法務専攻"]
["か","関東学院大学法科大学院","関東学院大学大学院法務研究科実務法学専攻","○"]
["き","九州大学法科大学院","九州大学大学院法務学府実務法学専攻"]
["き","京都大学法科大学院","京都大学大学院法学研究科法曹養成専攻"]
["き","京都産業大学法科大学院","京都産業大学大学院法務研究科法務専攻","○"]
["き","近畿大学法科大学院","近畿大学大学院法務研究科法務専攻","○"]
["く","熊本大学法科大学院","熊本大学大学院法曹養成研究科法曹養成専攻","○"]
["く","久留米大学法科大学院","久留米大学大学院法務研究科法務専攻","○"]
["け","慶應義塾大学法科大学院","慶應義塾大学大学院法務研究科法曹養成専攻"]
["こ","神戸大学法科大学院","神戸大学大学院法学研究科実務法律専攻"]
["こ","神戸学院大学法科大学院","神戸学院大学大学院実務法学研究科実務法学専攻","○"]
["こ","甲南大学法科大学院","甲南大学大学院法学研究科（法務専攻）","○"]
["こ","國學院大學法科大学院","國學院大學大学院法務研究科法務職専攻","○"]
["こ","駒澤大学法科大学院","駒澤大学大学院法曹養成研究科法曹養成専攻","○"]
["し","静岡大学法科大学院","静岡大学大学院法務研究科法務専攻","○"]
["し","島根大学法科大学院\n（通称：山陰法科大学院）","島根大学大学院法務研究科法曹養成専攻","○"]
["し","首都大学東京法科大学院","首都大学東京大学院社会科学研究科法曹養成専攻","○"]
["し","上智大学法科大学院","上智大学大学院法学研究科法曹養成専攻"]
["し","信州大学法科大学院","信州大学大学院法曹法務研究科法曹法務専攻","○"]
["す","駿河台大学法科大学院","駿河台大学大学院法務研究科法曹実務専攻","○"]
["せ","成蹊大学法科大学院","成蹊大学大学院法務研究科法務専攻","○"]
["せ","西南学院大学法科大学院","西南学院大学大学院法務研究科法曹養成専攻","○"]
["せ","専修大学法科大学院","専修大学大学院法務研究科法務専攻"]
["そ","創価大学法科大学院","創価大学大学院法務研究科法務専攻"]
["た","大東文化大学法科大学院","大東文化大学大学院法務研究科法務専攻","○"]
["ち","千葉大学法科大学院","千葉大学大学院専門法務研究科法務専攻"]
["ち","中央大学法科大学院","中央大学大学院法務研究科法務専攻"]
["ち","中京大学法科大学院","中京大学大学院法務研究科法務専攻","○"]
["つ","筑波大学法科大学院","筑波大学ビジネス科学研究科法曹専攻（令和元年度以前入学生）\n筑波大学人文社会ビジネス科学学術院法曹専攻（令和2年度以降入学生）"]
["と","桐蔭法科大学院","桐蔭法科大学院","○"]
["と","桐蔭横浜大学法科大学院","桐蔭横浜大学大学院法務研究科法務専攻","○"]
["と","東海大学法科大学院","東海大学大学院実務法学研究科実務法律学専攻","○"]
["と","東京大学法科大学院","東京大学大学院法学政治学研究科法曹養成専攻"]
["と","東京都立大学法科大学院","東京都立大学大学院法学政治学研究科法曹養成専攻"]
["と","同志社大学法科大学院","同志社大学大学院司法研究科法務専攻"]
["と","東北大学法科大学院","東北大学大学院法学研究科総合法制専攻"]
["と","東北学院大学法科大学院","東北学院大学大学院法務研究科法実務専攻","○"]
["と","東洋大学法科大学院","東洋大学大学院法務研究科法務専攻","○"]
["と","獨協大学法科大学院","獨協大学大学院法務研究科法曹実務専攻","○"]
["な","名古屋大学法科大学院","名古屋大学大学院法学研究科実務法曹養成専攻"]
["な","南山大学法科大学院","南山大学大学院法務研究科法務専攻　"]
["に","新潟大学法科大学院","新潟大学大学院実務法学研究科実務法学専攻","○"]
["に","日本大学法科大学院","日本大学大学院法務研究科法務専攻"]
["は","白鷗大学法科大学院","白鷗大学大学院法務研究科法務専攻","○"]
["ひ","一橋大学法科大学院","一橋大学大学院法学研究科法務専攻"]
["ひ","姫路獨協大学法科大学院","姫路獨協大学大学院法務研究科法務専攻","○"]
["ひ","広島大学法科大学院","広島大学大学院法務研究科法務専攻"]
["ひ","広島修道大学法科大学院","広島修道大学大学院法務研究科法務専攻","○"]
["ふ","福岡大学法科大学院","福岡大学大学院法曹実務研究科法務専攻"]
["ほ","法政大学法科大学院","法政大学大学院法務研究科法務専攻"]
["ほ","北海学園大学法科大学院","北海学園大学大学院法務研究科法務専攻","○"]
["ほ","北海道大学法科大学院","北海道大学大学院法学研究科・法律実務専攻"]
["め","明治大学法科大学院","明治大学大学院法務研究科法務専攻"]
["め","明治学院大学法科大学院","明治学院大学大学院法務職研究科法務専攻","○"]
["め","名城大学法科大学院","名城大学大学院法務研究科法務専攻","○"]
["や","山梨学院大学法科大学院","山梨学院大学大学院法務研究科法務専攻","○"]
["よ","横浜国立大学法科大学院","横浜国立大学大学院 国際社会科学研究科法曹実務専攻","○"]
["り","立教大学法科大学院","立教大学大学院法務研究科法務専攻","○"]
["り","立命館大学法科大学院","立命館大学大学院法務研究科法曹養成専攻"]
["り","龍谷大学法科大学院","龍谷大学大学院法務研究科法務専攻","○"]
["り","琉球大学法科大学院","琉球大学大学院法務研究科法務専攻"]
["わ","早稲田大学法科大学院","早稲田大学大学院法務研究科法務専攻"]